Cogmind - Beta 11 X4 @@@ ROGUE MODE // 2021.05.28 @ 14:11:24 Player: Terminus Result: Escaped! Performance ------------- Evolutions (9) 4500 Regions Visited (38) 7600 Robots Destroyed (345) 1725 Value Destroyed (11061) 11061 Prototype IDs (57) 1140 Alien Tech Used (8) 1600 Bonus (11351) 11351 TOTAL SCORE: 38977 Bonus ------- High Alert Combat Kills 539 Follower Combat Kills 1745 Network Hubs Disabled 200 Met Data Miner 300 Met Imprinter 300 Met Zhirov 300 Built Enhanced Grunts 300 A7 Reached Mainframe 300 Met MAIN.C 5000 Win 3000 Friendly Fire -633 Cogmind --------- Core Integrity 242/1850 Matter 295/425 Energy 831/840 System Corruption 5% Temperature Cool (18) Movement Flying (20) Location To Epsilon Eridani Parts ------- > --- POWER (1) -------- Zero-point Reactor > --- PROPULSION (6) --- Electron Diverter Improved Q-thruster Improved Q-thruster Improved Q-thruster Improved Q-thruster Improved Q-thruster > --- UTILITY (14) ----- Experimental Cooling System Experimental Energy Well Advanced Signal Interpreter Experimental Targeting Computer Experimental Targeting Computer Experimental Target Analyzer Advanced Armor Integrity Analyzer Experimental Weapon Cycler System Mapper Ghost Barrier Spacefold Activator > --- WEAPON (4) ------- Compact Mass Driver Compact Mass Driver Compact Mass Driver Compact Mass Driver > --- INVENTORY (5) ---- Zero-point Reactor Centrium Medium Armor Plating Compact Linear Accelerator Enhanced Force Lance Peak State ------------ > --- POWER ------------ Zero-point Reactor > --- PROPULSION ------- Electron Diverter Improved Q-thruster Improved Q-thruster Improved Q-thruster Improved Q-thruster Improved Q-thruster > --- UTILITY ---------- Experimental Cooling System Experimental Energy Well Dimensional Manipulator Advanced Signal Interpreter Experimental Targeting Computer Experimental Targeting Computer Experimental Target Analyzer Advanced Armor Integrity Analyzer Experimental Weapon Cycler Experimental Phase Shifter Advanced Powered Armor System Mapper Ghost Barrier Spacefold Activator > --- WEAPON ----------- Compact Mass Driver Compact Mass Driver Compact Mass Driver Compact Mass Driver > --- INVENTORY -------- Zero-point Reactor Improved Q-thruster Centrium Medium Armor Plating Compact Linear Accelerator Enhanced Force Lance [Rating: 229] Favorites ----------- Power Heavy Ion Engine Engine Heavy Ion Engine Power Core Micro Fission Core Reactor Mini Fusion Reactor Propulsion Light Treads Treads Light Treads Flight Unit Nuclear Pulse Array Utility High-capacity Storage Unit Device Experimental Sensor Array Storage High-capacity Storage Unit Processor Advanced Signal Interpreter Hackware Advanced Hacking Suite Protection Medium Armor Plating Artifact Spacefold Activator Weapon Shotgun Energy Gun Medium Laser Ballistic Gun Shotgun Ballistic Cannon Compact Mass Driver Launcher Mini Smartbomb Launcher Slashing Weapon Ripper Piercing Weapon Force Lance Build | -11 -10 -10 -9 -9 -8 -7 -7 -7 -7 -6 -6 -6 -6 -6 -6 -6 -5 -5 -5 -5 -5 -5 -5 -4 -4 -4 -4 -4 -4 -4 -4 -3 -3 -2 -2 -2 -1 -1 ------- Run | Scr Mat Min Mat Min Mat Fac Low Low Zio Pro Fac Was Fac Low Low Dat Pro Fac Was Fac Upp Upp Zhi Pro Fac Was Fac Ext Cet Arc Hub Res Qua Res Tes Sec Acc Com Slots Evolved 18 | . . . 2 . 2 2 . . . . 2 . . . . . . 2 . . . . . . 2 . . . . . . 2 . 2 . . 2 . Power . | . . . . . . . . . . . . . . . . . . . . . . . . . . . . . . . . . . . . . . . Propulsion 4 | . . . . . 1 1 . . . . 2 . . . . . . . . . . . . . . . . . . . . . . . . . . . Utility 12 | . . . 1 . 1 1 . . . . . . . . . . . 2 . . . . . . 1 . . . . . . 2 . 2 . . 2 . Weapon 2 | . . . 1 . . . . . . . . . . . . . . . . . . . . . 1 . . . . . . . . . . . . . Parts Attached 317 | 6 7 11 34 1 27 7 . 1 2 7 20 4 18 . . 1 1 15 7 10 4 5 1 2 14 1 3 1 7 1 6 6 6 7 23 32 12 7 Power 16 | 1 . 2 4 . 1 1 . . . 1 1 . 2 . . . . . . 1 . . . . . . . . . . . . . . 1 . . 1 Engine 13 | 1 . 2 4 . 1 1 . . . 1 1 . 2 . . . . . . . . . . . . . . . . . . . . . . . . . Core 1 | . . . . . . . . . . . . . . . . . . . . 1 . . . . . . . . . . . . . . . . . . Reactor 2 | . . . . . . . . . . . . . . . . . . . . . . . . . . . . . . . . . . . 1 . . 1 Propulsion 54 | 2 . 2 10 1 10 2 . . . . 4 . 1 . . . . 5 . 1 . . . . 4 . . . . . . 2 . 1 6 1 1 1 Treads 25 | 2 . 2 9 1 9 2 . . . . . . . . . . . . . . . . . . . . . . . . . . . . . . . . Leg . | . . . . . . . . . . . . . . . . . . . . . . . . . . . . . . . . . . . . . . . Wheel . | . . . . . . . . . . . . . . . . . . . . . . . . . . . . . . . . . . . . . . . Hover . | . . . . . . . . . . . . . . . . . . . . . . . . . . . . . . . . . . . . . . . Flight 29 | . . . 1 . 1 . . . . . 4 . 1 . . . . 5 . 1 . . . . 4 . . . . . . 2 . 1 6 1 1 1 Utility 137 | 1 4 2 8 . 7 4 . . . 4 7 4 6 . . 1 1 7 6 2 2 2 1 2 6 . 1 . 5 1 4 3 2 3 10 20 9 2 Device 71 | . 3 1 4 . 1 2 . . . 4 2 4 3 . . . 1 2 6 1 1 1 1 1 3 . 1 . 2 . 1 1 1 1 6 11 4 2 Storage 6 | 1 1 . . . . . . . . . 1 . . . . . . . . . . . . . . . . . . . . . 1 . 1 . 1 . Processor 7 | . . . . . . 1 . . . . 1 . . . . . . 1 . . . . . . . . . . . . 1 . . . . 1 2 . Hackware 15 | . . . . . 1 . . . . . 2 . 1 . . . . 3 . . . . . . 1 . . . . . 1 2 . 2 2 . . . Protection 33 | . . 1 4 . 5 1 . . . . 1 . 2 . . 1 . 1 . 1 1 1 . 1 2 . . . 3 1 1 . . . 1 3 2 . Artifact 5 | . . . . . . . . . . . . . . . . . . . . . . . . . . . . . . . . . . . . 5 . . Weapon 110 | 2 3 5 12 . 9 . . 1 2 2 8 . 9 . . . . 3 1 6 2 3 . . 4 1 2 1 2 . 2 1 4 3 6 11 2 3 Energy Gun 5 | . . 2 2 . . . . . . . . . . . . . . . . . . . . . . . . . . . . . . . . 1 . . Energy Cannon . | . . . . . . . . . . . . . . . . . . . . . . . . . . . . . . . . . . . . . . . Ballistic Gun 59 | 2 2 1 9 . 7 . . . 1 1 7 . 5 . . . . 2 . 2 . 1 . . 3 1 1 . 2 . . . 3 2 4 3 . . Ballistic Cannon 7 | . . . . . . . . . . . . . . . . . . . . . . . . . . . . . . . . . . . . 3 2 2 Launcher 16 | . 1 2 1 . 1 . . . . . 1 . 1 . . . . . . 1 1 2 . . . . . 1 . . 1 . 1 . . 1 . 1 Special Weapon . | . . . . . . . . . . . . . . . . . . . . . . . . . . . . . . . . . . . . . . . Impact Weapon . | . . . . . . . . . . . . . . . . . . . . . . . . . . . . . . . . . . . . . . . Slashing Weapon 5 | . . . . . 1 . . 1 1 1 . . 1 . . . . . . . . . . . . . . . . . . . . . . . . . Piercing Weapon 18 | . . . . . . . . . . . . . 2 . . . . 1 1 3 1 . . . 1 . 1 . . . 1 1 . 1 2 3 . . Special Melee Weapon . | . . . . . . . . . . . . . . . . . . . . . . . . . . . . . . . . . . . . . . . Unidentified Prototypes 22 | . . . 2 . 1 . . . . . . 1 1 . . . . 1 3 . . . 1 . . . . . 1 . . . . . 4 4 . 3 Parts Lost 28 | . 2 3 4 1 2 . . . . 1 2 . 1 . . . . . . . . . . . 1 . 1 . . . . . . . . 2 1 7 Power 1 | . . . . . . . . . . . . . 1 . . . . . . . . . . . . . . . . . . . . . . . . . Propulsion 5 | . . 1 . 1 . . . . . . 1 . . . . . . . . . . . . . . . . . . . . . . . . 1 . 1 Utility 13 | . 1 1 1 . 1 . . . . 1 . . . . . . . . . . . . . . 1 . 1 . . . . . . . . . 1 5 Weapon 9 | . 1 1 3 . 1 . . . . . 1 . . . . . . . . . . . . . . . . . . . . . . . . 1 . 1 Highest Loss Streak 2 | . 1 1 2 1 1 . . . . 1 2 . 1 . . . . . . . . . . . 1 . 1 . . . . . . . . 1 1 2 Average Slot Usage (%) 92 | . 95 100 99 100 99 100 100 100 100 99 76 80 79 80 80 80 80 81 81 81 82 82 81 82 84 84 82 84 84 84 84 85 83 85 93 98 98 93 Engine 6 | . 14 14 10 11 8 7 7 7 7 7 6 6 5 6 6 6 6 5 5 3 . . . . . . . . . . . . . . . . . . Core 1 | . . . . . . . . . . . . . . . . . . . . 1 5 5 5 5 5 5 5 5 5 5 5 4 4 4 2 . . . Treads 14 | . 28 28 21 22 27 30 30 30 30 30 . . . . . . . . . . . . . . . . . . . . . . . . . . . . Flight 7 | . . . . . . . . . . . 18 20 20 20 20 20 20 17 17 16 17 17 17 17 15 15 15 15 15 15 15 14 14 13 19 26 24 24 Device 9 | . 10 11 11 11 9 14 7 7 7 9 6 6 5 6 6 5 6 4 4 4 4 4 4 4 9 10 8 10 8 5 9 9 8 8 9 11 7 11 Storage 7 | . 14 14 11 11 9 7 7 7 7 7 6 6 6 6 6 6 6 5 5 5 5 5 5 5 5 5 5 5 5 5 5 4 4 4 4 4 3 4 Processor 4 | . . . . . . . 7 7 7 7 6 6 6 6 6 6 6 5 11 11 11 11 11 11 10 10 10 10 10 10 10 9 9 8 8 10 20 20 Hackware 9 | . . . . . 8 7 7 7 7 4 7 13 13 13 13 13 13 22 17 17 17 17 17 17 15 15 15 15 15 15 15 19 19 25 26 23 19 8 Protection 4 | . . 2 10 11 9 7 7 7 7 7 3 . . . . . . . . . . . . . . . . . 1 4 . 4 4 4 2 . . 4 Energy Gun 1 | . . 13 5 . . . . . . . . . . . . . . . . . . . . . . . . . . . . . . . . 1 . . Ballistic Gun 18 | . 27 12 27 33 26 23 23 21 15 22 17 20 16 13 13 13 13 11 16 11 11 5 5 5 12 21 15 10 20 21 15 14 11 12 13 9 . . Piercing Weapon 1 | . . . . . . . . . . . . . 2 6 6 6 6 4 . 4 4 5 5 5 4 . 5 5 . . 4 4 4 3 3 3 3 . Naked Turns . | . . . . . . . . . . . . . . . . . . . . . . . . . . . . . . . . . . . . . . . Heaviest Build 75 | 14 50 55 65 65 72 75 73 73 73 73 35 27 39 26 26 33 26 34 27 35 37 30 30 37 42 33 35 35 39 39 39 42 42 42 48 48 49 61 Greatest Support 80 | 40 40 40 40 40 63 80 80 80 80 80 39 39 39 39 39 39 39 39 39 39 39 39 39 39 45 45 45 45 45 45 45 46 46 46 48 48 48 73 Greatest Overweight (x) 2 | 2 1 1 1 1 1 . . . . . . . . . . . . . . . . . . . . . . . . . . . . . . . 1 . Average Overweight (x) . | . . 1 1 1 . . . . . . . . . . . . . . . . . . . . . . . . . . . . . . . . . . Largest Inventory Capacity 20 | 8 20 20 20 20 20 20 20 20 20 20 20 10 10 10 10 10 10 10 10 10 10 10 10 10 10 10 10 10 10 10 10 10 10 10 10 10 10 5 Average Capacity 15 | 7 16 20 20 20 20 20 20 20 20 20 10 10 10 10 10 10 10 10 10 10 10 10 10 10 10 10 10 10 10 10 10 10 10 10 10 10 9 5 Most Carried 20 | 2 13 20 20 20 20 20 20 20 20 20 17 10 10 10 10 10 10 10 10 10 10 10 10 10 10 10 10 10 10 10 10 10 10 9 10 10 10 5 Average Carried 14 | 1 9 16 19 19 19 19 20 20 20 19 9 10 9 10 10 9 10 9 9 9 9 10 10 10 9 10 9 10 10 10 10 8 9 8 9 9 8 4 Final Capacity 20 | 8 20 20 20 20 20 20 20 20 20 20 10 10 10 10 10 10 10 10 10 10 10 10 10 10 10 10 10 10 10 10 10 10 10 10 10 10 5 5 Final Carried 20 | 2 13 20 20 19 20 20 20 20 20 19 10 10 10 10 10 10 10 9 10 10 10 10 10 10 10 10 10 10 10 10 10 8 10 9 9 10 5 4 Class Distribution -------------------- 21% | Mutant 21% | Hacker-Mutant 20% | Tank 9% | Scavenger-Tank 6% | Wizard-Sprinter 4% | Skirmisher 3% | Machinist-Mutant 3% | Wizard-Mutant Dominant Class ---------------- Mutant | -10/Materials Mutant | -10/Mines Scavenger-Tank | -9/Materials Tank | -9/Mines Tank | -8/Materials Tank | -7/Factory Skirmisher | -7/Lower Caves Skirmisher | -7/Lower Caves Mutant | -7/Zion Skirmisher | -6/Proximity Caves Machinist-Skirmisher | -6/Factory Machinist-Skirmisher | -6/Waste Machinist-Mutant | -6/Factory Machinist-Mutant | -6/Lower Caves Machinist-Mutant | -6/Lower Caves Machinist-Mutant | -6/Data Miner Machinist-Mutant | -5/Proximity Caves Hacker-Mutant | -5/Factory Hacker-Skirmisher | -5/Waste Hacker-Mutant | -5/Factory Hacker-Mutant | -5/Upper Caves Hacker-Mutant | -5/Upper Caves Hacker-Mutant | -5/Zhirov Hacker-Mutant | -4/Proximity Caves Hacker-Mutant | -4/Factory Hacker-Skirmisher | -4/Waste Hacker-Mutant | -4/Factory Hacker-Mutant | -4/Extension Hacker-Skirmisher | -4/Cetus Hacker-Gunner | -4/Archives Hacker-Mutant | -4/Hub_04(d) Hacker-Mutant | -3/Research Hacker-Mutant | -3/Quarantine Wizard-Mutant | -2/Research Wizard-Sprinter | -2/Testing Wizard-Sprinter | -2/Section 7 Wizard-Sprinter | -1/Access Hacker-Sprinter | -1/Command Resources | -11 -10 -10 -9 -9 -8 -7 -7 -7 -7 -6 -6 -6 -6 -6 -6 -6 -5 -5 -5 -5 -5 -5 -5 -4 -4 -4 -4 -4 -4 -4 -4 -3 -3 -2 -2 -2 -1 -1 ----------- Run | Scr Mat Min Mat Min Mat Fac Low Low Zio Pro Fac Was Fac Low Low Dat Pro Fac Was Fac Upp Upp Zhi Pro Fac Was Fac Ext Cet Arc Hub Res Qua Res Tes Sec Acc Com Matter Collected 11439 | 278 410 246 948 224 1375 382 14 46 10 195 356 748 445 . . . 20 220 145 154 311 178 167 141 609 85 31 540 289 145 129 . 320 385 556 778 239 320 Remotely 688 | . . . . . . . . . . . . 688 . . . . . . . . . . . . . . . . . . . . . . . . . . Salvage Created 15178 | 97 521 502 1543 298 2142 482 30 30 . 205 455 1577 452 66 . 27 . 156 560 196 414 340 189 82 615 329 . 717 159 180 256 . 212 313 665 915 260 193 Parts 691 | 3 30 26 109 14 105 22 . 3 . 9 18 17 32 . . 2 . 12 6 13 16 21 1 7 38 5 . 31 12 8 14 . 11 14 30 44 8 10 Haulers Intercepted 20 | . 2 . 5 . 6 . . . . . . . 1 . . . . . . . . . . . . . . 2 . . . . . . 2 2 . . Recyclers Shooed 13 | . 1 1 2 . 1 . . . . . . . . . . . . . . . . . . . 1 . . 3 . . . . . 1 . 1 1 1 Parts Field Recycled . | . . . . . . . . . . . . . . . . . . . . . . . . . . . . . . . . . . . . . . . Retrieved Matter . | . . . . . . . . . . . . . . . . . . . . . . . . . . . . . . . . . . . . . . . Parts Self-Destructed 36 | . . . . . . . . 3 . 12 . . . . . . . . . . 8 9 . 4 . . . . . . . . . . . . . . Prevented . | . . . . . . . . . . . . . . . . . . . . . . . . . . . . . . . . . . . . . . . Kills | -11 -10 -10 -9 -9 -8 -7 -7 -7 -7 -6 -6 -6 -6 -6 -6 -6 -5 -5 -5 -5 -5 -5 -5 -4 -4 -4 -4 -4 -4 -4 -4 -3 -3 -2 -2 -2 -1 -1 ------- Run | Scr Mat Min Mat Min Mat Fac Low Low Zio Pro Fac Was Fac Low Low Dat Pro Fac Was Fac Upp Upp Zhi Pro Fac Was Fac Ext Cet Arc Hub Res Qua Res Tes Sec Acc Com Combat Hostiles Destroyed 237 | . 10 15 37 12 33 10 . 1 . 4 3 5 5 . . . . 2 . 7 3 13 . 8 18 1 . 12 5 2 2 . 6 3 3 11 . 6 Melee 6 | . . . . . . . . . . . . . . . . . . . . . . . . . 1 . . . . . 1 . . . 1 3 . . Guns 154 | . 6 12 34 12 31 10 . 1 . 4 1 5 4 . . . . 2 . 4 3 . . . 3 1 . 4 5 2 1 . 1 2 2 4 . . Cannons 3 | . . . . . . . . . . . . . . . . . . . . . . . . . . . . . . . . . . . . 1 . 2 AOE 74 | . 4 3 3 . 2 . . . . . 2 . 1 . . . . . . 3 . 13 . 8 14 . . 8 . . . . 5 1 . 3 . 4 Classes Destroyed 23 | 1 6 3 1 1 2 1 . 1 . . . 1 . . . . . . . . 2 . . . . . . 2 . . . . . . . 2 . . Worker 14 | . . 1 1 . 3 1 . . . . 1 . 1 . . . . . . . . . . . 1 . . 1 . . 1 . . 2 1 . . . Builder 10 | . 1 . . . . . . . . . . . 3 . . . . . . . . . . . 1 . . 2 . . 1 . . 2 . . . . Tunneler 1 | . . . . . 1 . . . . . . . . . . . . . . . . . . . . . . . . . . . . . . . . . Hauler 20 | . 2 . 5 . 6 . . . . . . . 1 . . . . . . . . . . . . . . 2 . . . . . . 2 2 . . Recycler 20 | 1 1 1 2 . 8 . . . . . 2 . . . . . . . . . . . . . 1 . . . . . . . . 1 . 1 1 1 Minesweeper 1 | . . . . . . . . . . . . . . . . . . . . . 1 . . . . . . . . . . . . . . . . . Operator 8 | . 1 . 2 . 2 . . . . . . . . . . . . . . . . . . . . . . 1 . . . . 1 . . 1 . . Drone 1 | . . . . . . . . . . . . . . . . . . . . . . . . . . . . . . . . . . . . 1 . . Watcher 33 | . 2 . 5 . 5 . . . . . 1 . 1 . . . . 2 . 1 . . . . 3 . . 1 1 . 2 . 1 1 3 1 3 . Swarmer 103 | . 3 6 16 3 13 . . . . . . . . . . . . . . 5 . 9 . 8 15 . . 7 5 . . . 3 2 . 4 . 4 Grunt 66 | . 7 7 10 7 10 5 . . . 2 . . 3 . . . . . . . 1 4 . . . . . 2 . . 2 . 3 . 3 . . . Brawler 5 | . . . . . 1 2 . . . 1 . . . . . . . . . . 1 . . . . . . . . . . . . . . . . . Protector 1 | . . . 1 . . . . . . . . . . . . . . . . . . . . . . . . . . . . . . . . . . . Sentry 28 | . . 1 10 . 9 1 . . . 1 . . . . . . . . . . 1 . . . 1 . . 2 . 2 . . . . . . . . Demolisher 2 | . . . . 2 . . . . . . . . . . . . . . . . . . . . . . . . . . . . . . . . . . Hunter 5 | . . . . . . . . 1 . . 3 . 1 . . . . . . . . . . . . . . . . . . . . . . . . . Programmer 16 | . . . . . . 2 . . . . . . 1 . . . . 2 . 2 . . . . 2 . . . . . . . . 1 . 4 . 2 Behemoth 1 | . . . . . . . . . . . . . . . . . . . . . . . . . . . . 1 . . . . . . . . . . Compactor 6 | . . . . . . . . . . . . 5 . . . . . . . . . . . . . 1 . . . . . . . . . . . . Executioner 2 | . . . . . . . . . . . . . . . . . . . . . . . . . . . . . . . . . . . . 2 . . Decomposer 1 | . . . . . . . 1 . . . . . . . . . . . . . . . . . . . . . . . . . . . . . . . Samaritan 5 | . . . . . . . . . . . . . . . . . . . . . 5 . . . . . . . . . . . . . . . . . Assembled 1 | . . 1 . . . . . . . . . . . . . . . . . . . . . . . . . . . . . . . . . . . . Wasp 1 | . . . . . . . . . . . . 1 . . . . . . . . . . . . . . . . . . . . . . . . . . Butcher 1 | . . . . . . . . . . . . . . . . . . . . . . . . . . . . 1 . . . . . . . . . . Best Kill Streak 9 | 1 6 3 9 3 7 3 . 1 . 3 4 2 3 . . 1 . 2 . 5 2 9 . 5 7 1 . 5 5 2 3 . 3 7 4 4 2 7 Combat Bots Only 9 | . 4 3 7 3 4 3 . 1 . 3 3 2 3 . . . . 2 . 5 2 9 . 5 5 1 . 4 5 2 2 . 3 3 2 4 . 4 Max Kills in Single Turn 5 | 1 3 2 3 2 2 1 1 1 . 1 1 1 1 . . 1 . 1 . 3 1 3 . 3 5 1 . 3 2 1 2 . 2 3 1 1 1 3 Gunslinging 1 | . . . 1 1 1 . . . . . . . . . . . . . . . . . . . . . . . . . . . . . . . . . Exploded 5 | . 2 2 3 . 1 . . . . . 1 . 1 . . . . . . 3 . 3 . 3 5 . . 3 . . . . 2 1 . 1 . 3 Melee 1 | . . . . . . . . . . . . . . . . . . . . . . . . . 1 . . . . . 1 . . . 1 1 . . Uniques/NPCs Destroyed 1 | . . . . . . . . . . . . . . . . 1 . . . . . . . . . . . . . . . . . . . . . . Data Miner (-6/Data Miner) Combat | -11 -10 -10 -9 -9 -8 -7 -7 -7 -7 -6 -6 -6 -6 -6 -6 -6 -5 -5 -5 -5 -5 -5 -5 -4 -4 -4 -4 -4 -4 -4 -4 -3 -3 -2 -2 -2 -1 -1 -------- Run | Scr Mat Min Mat Min Mat Fac Low Low Zio Pro Fac Was Fac Low Low Dat Pro Fac Was Fac Upp Upp Zhi Pro Fac Was Fac Ext Cet Arc Hub Res Qua Res Tes Sec Acc Com Damage Taken 14101 | . 521 731 868 334 1192 589 . 81 . 375 750 . 349 . . 97 16 196 . 155 144 145 . 200 153 . 117 119 160 24 121 69 41 307 167 2300 638 3142 Core 4116 | . 38 164 137 15 90 18 . . . 45 123 . 49 . . . 16 . . 20 49 32 . 24 . . . . 13 24 55 . . 50 26 1058 500 1570 Absorbed by Shields 147 | . . . . . . . . . . . 80 . . . . . . . . . . . . . . . . 22 45 . . . . . . . . . Core Remaining (%) 68 | 100 . 19 . 62 83 . . . . 91 . . . . . . 77 . . . . . . 87 . . . . . . 92 . 100 . . 33 . 13 Volleys Fired 664 | 3 58 45 91 18 93 29 . 3 . 10 20 40 21 . . . . 8 3 14 12 11 . 6 29 4 2 26 10 6 8 . 9 11 24 33 3 14 Largest 4 | 2 2 2 3 3 3 3 . 3 . 3 3 3 3 . . . . 3 3 3 2 1 . 1 4 4 3 2 4 4 3 . 2 4 4 4 2 4 Hottest 264 | 40 40 70 121 69 69 69 . 69 . 69 84 84 84 . . . . 84 84 84 80 80 . 80 112 112 84 80 112 112 84 . 80 112 112 136 132 264 Shots Fired 1684 | 6 111 86 266 54 275 87 . 9 . 30 48 120 54 . . . . 20 9 32 21 11 . 6 64 15 6 40 39 24 20 . 10 31 75 71 6 38 Gun 1568 | 6 106 84 265 54 273 87 . 9 . 30 42 120 54 . . . . 20 9 31 19 . . . 58 15 6 28 39 24 18 . 2 28 75 66 . . Cannon 43 | . . . . . . . . . . . . . . . . . . . . . . . . . . . . . . . . . . . . 1 6 36 Launcher 73 | . 5 2 1 . 2 . . . . . 6 . . . . . . . . 1 2 11 . 6 6 . . 12 . . 2 . 8 3 . 4 . 2 Special . | . . . . . . . . . . . . . . . . . . . . . . . . . . . . . . . . . . . . . . . Kinetic 1508 | 6 106 44 203 54 273 87 . 9 . 30 42 120 54 . . . . 20 9 31 19 . . . 58 15 6 28 39 24 18 . 2 28 75 66 6 36 Thermal 103 | . . 40 62 . . . . . . . . . . . . . . . . . . . . . . . . . . . . . . . . 1 . . Explosive 73 | . 5 2 1 . 2 . . . . . 6 . . . . . . . . 1 2 11 . 6 6 . . 12 . . 2 . 8 3 . 4 . 2 Electromagnetic . | . . . . . . . . . . . . . . . . . . . . . . . . . . . . . . . . . . . . . . . Robot Hit Streak 24 | 4 9 12 24 11 16 14 . 7 . 8 6 11 7 . . . . 6 4 6 11 . . . 15 7 1 12 5 6 9 . 3 5 10 12 1 10 Robot Miss Streak 18 | 2 4 2 6 3 6 4 . 2 . 3 8 8 16 . . . . 7 2 18 15 . . . 12 13 7 6 9 4 7 . 5 6 18 3 1 3 Penetration Max 1 | . . . . . . . . . . . . . . . . . . . . . . . . . . . . . . . . . . . . 1 . . Secondary Targets 18 | . . . 7 2 5 . . . . 1 . . . . . . . 1 . . . . . . 1 . . . 1 . . . . . . . . . Max Gunslinging Chain 1 | . . . 1 1 1 . . . . 1 . . . . . . . 1 . . . . . . 1 . . . 1 . . . . . . . . . Shots Hit Robots 1336 | 4 71 58 186 41 202 68 . 7 . 26 40 115 45 1 . 1 . 21 9 26 26 2 5 . 50 15 6 29 37 24 19 1 4 33 72 63 9 20 Core Hits 1079 | 2 38 30 115 24 117 38 1 5 . 19 33 69 53 1 . 1 . 18 11 25 26 20 4 9 72 13 1 66 38 38 22 . 15 28 62 43 6 16 Critical Kills 3 | . . 1 1 . . . . . . 1 . . . . . . . . . . . . . . . . . . . . . . . . . . . . Critical Parts Destroyed 8 | . . . . . 1 1 . . . 1 . . . . . . . . . . . . . . . . . . . . . . . . 2 3 . . Critical Strikes 32 | . . 5 1 . 1 1 . . . 2 . . . . . . . . . . 1 1 . . 1 . . . . . . . . 1 5 6 2 5 Burn 4 | . . 4 . . . . . . . . . . . . . . . . . . . . . . . . . . . . . . . . . . . . Destroy 11 | . . 1 1 . 1 1 . . . 2 . . . . . . . . . . . . . . . . . . . . . . . . 2 3 . . Blast 5 | . . . . . . . . . . . . . . . . . . . . . . . . . . . . . . . . . . . . . . 5 Puncture 12 | . . . . . . . . . . . . . . . . . . . . . 1 1 . . 1 . . . . . . . . 1 3 3 2 . Melee Attacks 319 | . . . . . . . . 2 . 2 . . 6 2 . 27 . 21 . 20 18 3 5 8 37 . . 2 . . 20 12 20 20 37 40 17 . Impact . | . . . . . . . . . . . . . . . . . . . . . . . . . . . . . . . . . . . . . . . Slashing 5 | . . . . . . . . 2 . 2 . . 1 . . . . . . . . . . . . . . . . . . . . . . . . . Piercing 314 | . . . . . . . . . . . . . 5 2 . 27 . 21 . 20 18 3 5 8 37 . . 2 . . 20 12 20 20 37 40 17 . Sneak Attacks 21 | . . . . . . . . . . . . . . . . 1 . . . 1 10 . . . 1 . . . . . . 1 . 2 1 3 1 . Combat Hostiles . | . . . . . . . . . . . . . . . . . . . . . . . . . . . . . . . . . . . . . . . Follow-up Attacks . | . . . . . . . . . . . . . . . . . . . . . . . . . . . . . . . . . . . . . . . Damage Inflicted 39158 | 50 1232 928 2847 669 3532 1113 36 72 . 408 759 3295 974 89 . 107 . 558 226 897 1807 1565 481 788 2381 344 47 2703 686 588 577 203 1153 1239 2221 2652 616 1315 Guns 21488 | 50 869 733 2665 651 3281 1105 . 72 . 408 473 3295 879 . . . . 475 226 509 266 . . . 799 344 47 657 686 588 290 . 26 376 910 808 . . Cannons 1118 | . . . . . . . . . . . . . . . . . . . . . . . . . . . . . . . . . . . . 45 117 956 Explosions 9488 | . 345 164 151 . 207 . . . . . 286 . 95 . . . . . . 304 68 1340 . 788 1368 . . 1913 . . 108 . 958 492 . 542 . 359 Melee 6878 | . . . . . . . . . . . . . . 89 . 107 . 83 . 84 1473 225 481 . 214 . . 133 . . 179 203 169 371 1311 1257 499 . Ramming 186 | . 18 31 31 18 44 8 36 . . . . . . . . . . . . . . . . . . . . . . . . . . . . . . . Kinetic 21305 | 50 869 348 1773 651 3281 1105 . 72 . 408 473 3295 879 . . . . 475 226 509 266 . . . 799 344 47 657 686 588 290 . 26 376 910 829 117 956 Thermal 1396 | . . 385 892 . . . . . . . . . 95 . . . . . . . . . . . . . . . . . . . . . . 24 . . Explosive 9167 | . 227 164 151 . 207 . . . . . 286 . . . . . . . . 304 68 1340 . 788 1368 . . 1913 . . . . 958 492 . 542 . 359 Electromagnetic 226 | . 118 . . . . . . . . . . . . . . . . . . . . . . . . . . . . . 108 . . . . . . . Impact . | . . . . . . . . . . . . . . . . . . . . . . . . . . . . . . . . . . . . . . . Slashing . | . . . . . . . . . . . . . . . . . . . . . . . . . . . . . . . . . . . . . . . Piercing 6878 | . . . . . . . . . . . . . . 89 . 107 . 83 . 84 1473 225 481 . 214 . . 133 . . 179 203 169 371 1311 1257 499 . Highest Corruption 9 | . 1 1 . . . 1 1 1 1 2 2 2 2 2 2 2 2 1 1 2 2 2 2 2 . 9 9 9 9 9 9 . . 2 2 5 . 5 Average Corruption 2 | . 1 1 . . . 1 1 1 1 2 2 2 2 2 2 2 2 1 1 1 2 2 2 2 . 9 9 9 9 9 9 . . 1 2 3 . 3 Corruption Purged . | . . . . . . . . . . . . . . . . . . . . . . . . . . . . . . . . . . . . . . . Effects 163 | . 1 6 . . . 3 1 2 3 1 5 2 8 1 2 1 2 1 . 4 5 2 1 3 . 3 12 25 12 3 12 . . 3 16 15 . 8 Message Errors 52 | . 1 5 . . . 2 . . . 1 2 . 3 1 2 . . 1 . 1 . . . 1 . . 4 4 5 1 5 . . 2 4 5 . 2 Matter Fused 17 | . . . . . . . . . . . . . . . . . . . . . . . . . . 1 . 8 3 2 2 . . . . 1 . . Heat Flow Errors 26 | . . . . . . . . . . . 2 1 2 . . 1 . . . 1 1 . 1 1 . . 3 5 . . . . . . 2 3 . 3 Energy Discharges 34 | . . . . . . 1 . . 2 . . 1 3 . . . 1 . . 2 . 2 . 1 . 1 1 1 1 . 2 . . 1 8 4 . 2 Parts Rejected 1 | . . . . . . . . . . . . . . . . . . . . . . . . . . . . . . . . . . . . . . 1 Data Loss (minor) 26 | . . 1 . . . . 1 2 1 . 1 . . . . . 1 . . . 3 . . . . . 4 5 2 . 2 . . . 1 2 . . Data Loss (major) 3 | . . . . . . . . . . . . . . . . . . . . . . . . . . . . 2 . . 1 . . . . . . . Weapon Failures 4 | . . . . . . . . . . . . . . . . . . . . . 1 . . . . 1 . . 1 . . . . . 1 . . . Overload Shots . | . . . . . . . . . . . . . . . . . . . . . . . . . . . . . . . . . . . . . . . Overflow Damage 2119 | . 9 8 . . 46 . 5 . . . 3 . . . . . . . . 64 525 150 46 28 209 . . 66 . . . 18 48 288 173 193 174 66 Projectiles 66 | . . . . . . . . . . . . . . . . . . . . . . . . . . . . . . . . . . . . . . 66 Explosions 491 | . 9 8 . . 46 . . . . . 3 . . . . . . . . 20 . 39 . 28 106 . . 58 . . . . . 137 . 37 . . Melee 1562 | . . . . . . . 5 . . . . . . . . . . . . 44 525 111 46 . 103 . . 8 . . . 18 48 151 173 156 174 . Knockbacks 3 | . . . . . . . . . . . . . . . . . . . . . . . . . . . . . . . . . . . . . 1 2 Impact . | . . . . . . . . . . . . . . . . . . . . . . . . . . . . . . . . . . . . . . . Kinetic 3 | . . . . . . . . . . . . . . . . . . . . . . . . . . . . . . . . . . . . . 1 2 Secondary . | . . . . . . . . . . . . . . . . . . . . . . . . . . . . . . . . . . . . . . . Self-Inflicted Damage 219 | . . 45 . . . . . . . . . . 74 . . . . . . . . . . . . . . . . . 100 . . . . . . . Shots 4 | . . 2 . . . . . . . . . . 1 . . . . . . . . . . . . . . . . . 1 . . . . . . . Rammed 38 | . 5 7 9 2 6 2 7 . . . . . . . . . . . . . . . . . . . . . . . . . . . . . . . Targets Rammed 41 | . 6 8 9 2 7 2 7 . . . . . . . . . . . . . . . . . . . . . . . . . . . . . . . Kicked . | . . . . . . . . . . . . . . . . . . . . . . . . . . . . . . . . . . . . . . . Crushed 3 | . 1 1 . . 1 . . . . . . . . . . . . . . . . . . . . . . . . . . . . . . . . . Highest Temperature 418 | . 4 242 418 . 8 17 . 36 . 5 238 138 245 . . 266 . 50 6 176 121 147 76 99 198 146 194 248 214 168 112 . 158 126 209 183 162 370 Average Temperature 59 | . 4 110 33 . 6 7 . 18 . 5 70 31 53 . . 143 . 26 3 43 38 53 40 40 69 62 70 75 96 64 38 . 63 50 68 67 71 122 Received Heat Transfer 2038 | . 279 273 288 69 459 168 . . . 165 6 . 63 . . 12 . 9 . . 27 9 . 9 9 . . . 13 . . . . 45 18 63 . 54 Effects 8 | . . . 5 . . . . . . . . . 1 . . . . . . . . . . . . . . . . . . . . . . . . 2 Shutdowns 1 | . . . . . . . . . . . . . . . . . . . . . . . . . . . . . . . . . . . . . . 1 Energy Bleed 1 | . . . 1 . . . . . . . . . . . . . . . . . . . . . . . . . . . . . . . . . . . Interference 2 | . . . . . . . . . . . . . 1 . . . . . . . . . . . . . . . . . . . . . . . . 1 Damage (major) 4 | . . . 4 . . . . . . . . . . . . . . . . . . . . . . . . . . . . . . . . . . . Siege Activations . | . . . . . . . . . . . . . . . . . . . . . . . . . . . . . . . . . . . . . . . Robots Corrupted . | . . . . . . . . . . . . . . . . . . . . . . . . . . . . . . . . . . . . . . . Combat Hostiles . | . . . . . . . . . . . . . . . . . . . . . . . . . . . . . . . . . . . . . . . Parts Fried 1 | . . . . . . . . . . . . . . . . . . . . . 1 . . . . . . . . . . . . . . . . . Impact Corruptions 2 | . . . . . . . 2 . . . . . . . . . . . . . . . . . . . . . . . . . . . . . . . Robots Melted . | . . . . . . . . . . . . . . . . . . . . . . . . . . . . . . . . . . . . . . . Combat Hostiles . | . . . . . . . . . . . . . . . . . . . . . . . . . . . . . . . . . . . . . . . Parts Melted 2 | . . 2 . . . . . . . . . . . . . . . . . . . . . . . . . . . . . . . . . . . . Heat Transferred 2876 | . . 1443 1333 . . . . . . . . . 50 . . . . . . . . . . . . . . . . . . . . . . 50 . . Parts Sabotaged . | . . . . . . . . . . . . . . . . . . . . . . . . . . . . . . . . . . . . . . . Parts Stolen . | . . . . . . . . . . . . . . . . . . . . . . . . . . . . . . . . . . . . . . . Parts Stripped . | . . . . . . . . . . . . . . . . . . . . . . . . . . . . . . . . . . . . . . . Power Chain Reactions . | . . . . . . . . . . . . . . . . . . . . . . . . . . . . . . . . . . . . . . . Missiles Intercepted . | . . . . . . . . . . . . . . . . . . . . . . . . . . . . . . . . . . . . . . . Alert | -11 -10 -10 -9 -9 -8 -7 -7 -7 -7 -6 -6 -6 -6 -6 -6 -6 -5 -5 -5 -5 -5 -5 -5 -4 -4 -4 -4 -4 -4 -4 -4 -3 -3 -2 -2 -2 -1 -1 ------- Run | Scr Mat Min Mat Min Mat Fac Low Low Zio Pro Fac Was Fac Low Low Dat Pro Fac Was Fac Upp Upp Zhi Pro Fac Was Fac Ext Cet Arc Hub Res Qua Res Tes Sec Acc Com Peak Influence 986 | 5 189 159 835 404 453 618 . . . . 187 67 629 . . . . 157 4 664 . . . . 679 267 639 699 986 509 595 500 375 255 400 442 726 773 Initial 412 | . 3 20 57 298 33 205 . . . . . 59 46 . . . . 28 4 2 . . . . 154 237 186 221 412 394 177 312 275 93 67 12 175 176 Average 225 | 2 74 55 523 241 212 289 . . . . 81 61 268 . . . . 46 4 108 . . . . 358 243 320 312 729 461 351 307 162 65 53 196 312 562 Maximum Alert Level 3 | . . . 3 2 2 2 . . . . . . 2 . . . . . . 2 . . . . 2 1 2 2 3 2 2 2 1 1 2 2 3 3 Low Security (%) 54 | 100 100 100 7 40 43 28 . . . . 100 100 51 . . . . 100 100 72 . . . . 23 . 5 11 . . 9 17 81 92 89 43 31 5 Level 1 27 | . . . 30 58 40 51 . . . . . . 27 . . . . . . 27 . . . . 35 100 65 68 . 23 63 54 18 7 9 53 38 13 Level 2 12 | . . . 23 1 16 19 . . . . . . 21 . . . . . . . . . . . 40 . 28 19 24 76 27 28 . . . 3 24 44 Level 3 5 | . . . 38 . . . . . . . . . . . . . . . . . . . . . . . . . 75 . . . . . . . 5 36 Level 4 . | . . . . . . . . . . . . . . . . . . . . . . . . . . . . . . . . . . . . . . . Level 5 . | . . . . . . . . . . . . . . . . . . . . . . . . . . . . . . . . . . . . . . . High Security . | . . . . . . . . . . . . . . . . . . . . . . . . . . . . . . . . . . . . . . . Max Security . | . . . . . . . . . . . . . . . . . . . . . . . . . . . . . . . . . . . . . . . Squads Dispatched 64 | . 2 . 4 . 4 3 . . . . 4 . 10 . . . . 3 . 4 . . . . 5 . 1 2 . . 5 . 1 1 5 7 1 2 Investigation 17 | . . . . . 1 . . . . . 4 . 6 . . . . 1 . 1 . . . . 1 . 1 . . . 1 . . . . 1 . . Extermination 12 | . . . . . . 2 . . . . . . 1 . . . . 1 . 2 . . . . 1 . . . . . . . . . 3 2 . . Reinforcement 28 | . 2 . 3 . 2 1 . . . . . . . . . . . . . 1 . . . . 3 . . 1 . . 4 . 1 1 2 4 1 2 Assault 2 | . . . 1 . . . . . . . . . . . . . . . . . . . . . . . . 1 . . . . . . . . . . Garrison 5 | . . . . . 1 . . . . . . . 3 . . . . 1 . . . . . . . . . . . . . . . . . . . . Intercept . | . . . . . . . . . . . . . . . . . . . . . . . . . . . . . . . . . . . . . . . Construction Impeded 4 | . . . . . . . . . . . . . . . . . . . . . . . . . 1 . . 1 . . 1 . . 1 . . . . Haulers Reinforced 3 | . . . . . . . . . . . . . . . . . . . . . . . . . . . . . . . . . . . 2 1 . . Cargo Convoy Interrupts . | . . . . . . . . . . . . . . . . . . . . . . . . . . . . . . . . . . . . . . . Stealth | -11 -10 -10 -9 -9 -8 -7 -7 -7 -7 -6 -6 -6 -6 -6 -6 -6 -5 -5 -5 -5 -5 -5 -5 -4 -4 -4 -4 -4 -4 -4 -4 -3 -3 -2 -2 -2 -1 -1 --------- Run | Scr Mat Min Mat Min Mat Fac Low Low Zio Pro Fac Was Fac Low Low Dat Pro Fac Was Fac Upp Upp Zhi Pro Fac Was Fac Ext Cet Arc Hub Res Qua Res Tes Sec Acc Com Distress Signals 27 | . 2 2 2 . 2 . . . . . . . . . . . . 2 . . . . . . 1 . . 2 1 . 4 1 . 2 . 4 1 1 Communications Jammed . | . . . . . . . . . . . . . . . . . . . . . . . . . . . . . . . . . . . . . . . Distress Signals . | . . . . . . . . . . . . . . . . . . . . . . . . . . . . . . . . . . . . . . . Times Spotted 526 | . 31 20 65 11 47 14 . 1 . 5 13 6 15 . . 4 3 20 . 9 7 9 . 8 18 6 4 25 12 6 16 5 12 15 10 44 18 47 Peak Tracking Total 17 | . 5 4 5 3 4 4 . 1 . 4 4 3 3 . . 4 5 4 . 2 4 5 . 7 7 5 2 4 6 1 6 5 5 6 2 14 10 17 Tactical Retreats 73 | . 3 4 12 . 4 1 . . . . 4 . . . . . 2 6 . 1 2 . . 4 1 . 1 . . . 4 . 1 2 . 9 5 7 Traps | -11 -10 -10 -9 -9 -8 -7 -7 -7 -7 -6 -6 -6 -6 -6 -6 -6 -5 -5 -5 -5 -5 -5 -5 -4 -4 -4 -4 -4 -4 -4 -4 -3 -3 -2 -2 -2 -1 -1 ------- Run | Scr Mat Min Mat Min Mat Fac Low Low Zio Pro Fac Was Fac Low Low Dat Pro Fac Was Fac Upp Upp Zhi Pro Fac Was Fac Ext Cet Arc Hub Res Qua Res Tes Sec Acc Com Traps Triggered 13 | . 1 . . . . . . . . . 3 . 1 . . . . 1 . 1 . . . . 1 . 1 3 . . . . . . . 1 . . Indirectly . | . . . . . . . . . . . . . . . . . . . . . . . . . . . . . . . . . . . . . . . Trap Hack Attempts . | . . . . . . . . . . . . . . . . . . . . . . . . . . . . . . . . . . . . . . . Triggered . | . . . . . . . . . . . . . . . . . . . . . . . . . . . . . . . . . . . . . . . Disarmed 9 | . . . . . 3 . . . . . . . 6 . . . . . . . . . . . . . . . . . . . . . . . . . Reprogrammed . | . . . . . . . . . . . . . . . . . . . . . . . . . . . . . . . . . . . . . . . Reused 1 | . . . . . . . . . . . . . . . . . . . . . 1 . . . . . . . . . . . . . . . . . Traps Extracted . | . . . . . . . . . . . . . . . . . . . . . . . . . . . . . . . . . . . . . . . Installed 5 | . . . . . . . . . . . . . . . . . . . . . 5 . . . . . . . . . . . . . . . . . Triggered 2 | . . . . . . . . . . . . . . . . . 1 . . . 1 . . . . . . . . . . . . . . . . . Machines | -11 -10 -10 -9 -9 -8 -7 -7 -7 -7 -6 -6 -6 -6 -6 -6 -6 -5 -5 -5 -5 -5 -5 -5 -4 -4 -4 -4 -4 -4 -4 -4 -3 -3 -2 -2 -2 -1 -1 ---------- Run | Scr Mat Min Mat Min Mat Fac Low Low Zio Pro Fac Was Fac Low Low Dat Pro Fac Was Fac Upp Upp Zhi Pro Fac Was Fac Ext Cet Arc Hub Res Qua Res Tes Sec Acc Com Machines Disabled 35 | . 3 1 . . . . . . . . 1 . 3 . . 1 . . . . . . . . 1 . . 6 . . 4 . 5 . 4 6 . . Max in Single Turn 3 | . 2 1 . . . . . . . . 1 . 2 . . 1 . . . . . . . . 1 . . 2 . . 3 . 1 . 1 1 . . Garrison Access 9 | . . . . . 1 . . . . . . . 1 . . . . 1 . 1 . . . . 2 . . . . . . 1 . 1 . 1 . . Network Hub 1 | . . . . . . . . . . . . . . . . . . . . . . . . . . . . . . . 1 . . . . . . . Machines Sabotaged . | . . . . . . . . . . . . . . . . . . . . . . . . . . . . . . . . . . . . . . . Garrisons Compromised . | . . . . . . . . . . . . . . . . . . . . . . . . . . . . . . . . . . . . . . . Overloaded Fab Kills . | . . . . . . . . . . . . . . . . . . . . . . . . . . . . . . . . . . . . . . . Fab Network Shutdowns 8 | . . . . . . 1 . . . . . . 1 . . . . . . 1 . . . . 1 . 1 . . . . 1 . . 1 . 1 . Hacking | -11 -10 -10 -9 -9 -8 -7 -7 -7 -7 -6 -6 -6 -6 -6 -6 -6 -5 -5 -5 -5 -5 -5 -5 -4 -4 -4 -4 -4 -4 -4 -4 -3 -3 -2 -2 -2 -1 -1 --------- Run | Scr Mat Min Mat Min Mat Fac Low Low Zio Pro Fac Was Fac Low Low Dat Pro Fac Was Fac Upp Upp Zhi Pro Fac Was Fac Ext Cet Arc Hub Res Qua Res Tes Sec Acc Com Machines Accessed 197 | . 6 1 6 1 12 5 . . 1 . 9 . 17 . . 4 . 12 . 11 . 1 4 . 10 . 3 17 2 . 7 10 13 7 8 11 10 9 Terminals 134 | . 6 1 4 1 8 2 . . . . 6 . 11 . . . . 7 . 5 . 1 . . 5 . 2 17 2 . 7 6 9 5 6 7 7 9 Fabricators 22 | . . . . . . 1 . . . . 2 . 4 . . . . 2 . 2 . . . . 3 . 1 . . . . 1 . 1 2 . 3 . Repair Stations 13 | . . . 1 . 2 . . . . . 1 . 1 . . . . 2 . 2 . . . . . . . . . . . 2 2 . . . . . Recycling Units 1 | . . . . . 1 . . . . . . . . . . . . . . . . . . . . . . . . . . . . . . . . . Scanalyzers 9 | . . . 1 . . 2 . . . . . . . . . . . . . 1 . . . . . . . . . . . . 2 . . 3 . . Garrison Access 9 | . . . . . 1 . . . . . . . 1 . . . . 1 . 1 . . . . 2 . . . . . . 1 . 1 . 1 . . Total Hacks 771 | . 22 5 25 5 38 14 . . 8 . 34 . 41 . . 25 . 38 . 43 . 1 17 . 48 . 13 41 5 . 23 32 62 36 45 53 66 31 Successful 568 | . 12 3 14 3 29 10 . . 8 . 23 . 25 . . 25 . 33 . 34 . 1 17 . 30 . 8 28 4 . 14 24 42 32 38 48 51 12 Failed 198 | . 10 2 11 2 9 4 . . . . 10 . 16 . . . . 5 . 8 . . . . 17 . 5 12 1 . 9 7 20 4 7 5 15 19 Catastrophic 20 | . . . . . 1 2 . . . . . . 1 . . . . . . . . . . . 1 . . . . . 2 . 4 . . 1 3 5 Database Lockouts 5 | . . . . . . . . . . . 1 . . . . . . . . 1 . . . . 1 . . 1 . . . 1 . . . . . . Manual 436 | . 21 4 13 5 20 6 . . . . 16 . 19 . . . . 24 . 25 . . . . 25 . 6 24 1 . 20 17 35 24 30 30 49 22 Terminals 529 | . 22 5 19 5 26 4 . . . . 19 . 29 . . . . 21 . 23 . 1 . . 29 . 5 41 5 . 23 20 48 28 32 43 50 31 Fabricators 105 | . . . . . . 6 . . . . 9 . 8 . . . . 11 . 7 . . . . 14 . 8 . . . . 6 . 7 13 . 16 . Repair Stations 46 | . . . 2 . 7 . . . . . 6 . 3 . . . . 5 . 8 . . . . . . . . . . . 5 10 . . . . . Recycling Units 2 | . . . . . 2 . . . . . . . . . . . . . . . . . . . . . . . . . . . . . . . . . Scanalyzers 23 | . . . 4 . . 4 . . . . . . . . . . . . . 2 . . . . . . . . . . . . 4 . . 9 . . Garrison Access 16 | . . . . . 3 . . . . . . . 1 . . . . 1 . 3 . . . . 5 . . . . . . 1 . 1 . 1 . . Terminal Hacks 279 | . 6 2 4 2 12 1 . . 8 . 5 . 7 . . 25 . 9 . 12 . 1 17 . 11 . 1 19 4 . 6 8 21 20 19 29 24 6 Record 23 | . . . . . . . . . . . . . . . . 11 . . . . . 1 5 . . . . . 3 . . . 3 . . . . . Part Schematic 47 | . . . . . 1 1 . . 8 . 2 . . . . 7 . 1 . 3 . . 4 . 3 . . 3 . . . 2 4 6 . 2 . . Robot Schematic 4 | . . . . . . . . . . . . . . . . 4 . . . . . . . . . . . . . . . . . . . . . . Robot Analysis 5 | . . . . . . . . . . . . . . . . . . . . . . . 4 . . . . 1 . . . . . . . . . . Prototype ID Bank 8 | . . . . . . . . . . . . . . . . 3 . . . . . . 4 . . . . . . . . . . 1 . . . . Open Door 15 | . . . . . . . . . . . . . . . . . . . . . . . . . . . . 9 1 . . 1 . . . . 3 1 Level Access Points 3 | . . . . . . . . . . . . . . . . . . . . . . . . . . . . . . . 1 . 1 . . 1 . . Branch Access Points 7 | . . . . . . . . . . . . . 1 . . . . 1 . 1 . . . . 1 . . . . . . 1 . 1 . . 1 . Emergency Access Points 2 | . . . . . . . . . . . . . . . . . . . . 1 . . . . . . . . . . . . . . . 1 . . Machine Index 2 | . . . . . . . . . . . . . 1 . . . . . . . . . . . . . . . . . . 1 . . . . . . Terminal Index 16 | . 1 . . . . . . . . . 1 . 1 . . . . 1 . 1 . . . . 1 . 1 . . . 1 1 1 2 1 1 1 1 Fabricator Index 7 | . . . . . . . . . . . 1 . . . . . . 1 . 1 . . . . 1 . . . . . . . . 1 1 . 1 . Repair Station Index 3 | . . . . . . . . . . . . . . . . . . 1 . 1 . . . . 1 . . . . . . . . . . . . . Scanalyzer Index 2 | . . . . . . . . . . . . . . . . . . . . . . . . . . . . . . . . . 1 . . 1 . . Garrison Index 1 | . . . . . . . . . . . . . . . . . . . . 1 . . . . . . . . . . . . . . . . . . Alert Level 40 | . 2 1 1 1 4 . . . . . . . . . . . . 1 . . . . . . 2 . . 2 . . 2 1 5 2 4 5 7 . Unreport Threat 31 | . . . . . 3 . . . . . . . . . . . . 1 . . . . . . 2 . . 2 . . 1 1 3 3 5 5 5 . Locate Traps 9 | . . . . . 1 . . . . . 1 . 1 . . . . . . 1 . . . . . . . 1 . . . . 1 . 1 . 1 1 Disarm Traps 2 | . . . . . 1 . . . . . . . 1 . . . . . . . . . . . . . . . . . . . . . . . . . Extermination Status 1 | . . . . . . . . . . . . . . . . . . . . . . . . . . . . . . . . . . . . 1 . . Recall Investigation 1 | . . . . . . . . . . . . . . . . . . . . . . . . . . . . . . . . . . . . 1 . . Recall Extermination 6 | . . . . . . . . . . . . . . . . . . 1 . 1 . . . . . . . . . . . . . . 3 1 . . Recall Reinforcements 7 | . . . . . . . . . . . . . . . . . . . . . . . . . . . . . . . . . . 2 1 3 1 . Hauler Manifests 5 | . . . 1 . 1 . . . . . . . . . . . . . . . . . . . . . . . . . . . . . . 2 1 . Zone Layout 31 | . 3 1 2 1 1 . . . . . . . 2 . . . . 1 . 1 . . . . . . . 1 . . 1 . 2 2 3 5 3 2 Disengage Seal 1 | . . . . . . . . . . . . . . . . . . . . . . . . . . . . . . . . . . . . . . 1 Fabricator Hacks 60 | . . . . . . 3 . . . . 5 . 6 . . . . 7 . 3 . . . . 7 . 4 . . . . 4 . 5 8 . 8 . Load Schematic 22 | . . . . . . 1 . . . . 2 . 3 . . . . 2 . 1 . . . . 3 . 2 . . . . 1 . 1 2 . 4 . Build 38 | . . . . . . 2 . . . . 3 . 3 . . . . 5 . 2 . . . . 4 . 2 . . . . 3 . 4 6 . 4 . Repair Station Hacks 44 | . . . 2 . 7 . . . . . 6 . 3 . . . . 5 . 8 . . . . . . . . . . . 4 9 . . . . . Scan Component 24 | . . . 1 . 4 . . . . . 3 . 2 . . . . 3 . 4 . . . . . . . . . . . 2 5 . . . . . Repair 20 | . . . 1 . 3 . . . . . 3 . 1 . . . . 2 . 4 . . . . . . . . . . . 2 4 . . . . . Recycling Unit Hacks 1 | . . . . . 1 . . . . . . . . . . . . . . . . . . . . . . . . . . . . . . . . . Report Inventory 1 | . . . . . 1 . . . . . . . . . . . . . . . . . . . . . . . . . . . . . . . . . Scanalyzer 23 | . . . 4 . . 4 . . . . . . . . . . . . . 2 . . . . . . . . . . . . 4 . . 9 . . Insert Component 15 | . . . 2 . . 2 . . . . . . . . . . . . . 1 . . . . . . . . . . . . 4 . . 6 . . Analyze 8 | . . . 2 . . 2 . . . . . . . . . . . . . 1 . . . . . . . . . . . . . . . 3 . . Garrison Access Hacks 9 | . . . . . 1 . . . . . . . 1 . . . . 1 . 1 . . . . 2 . . . . . . 1 . 1 . 1 . . Seal Access 9 | . . . . . 1 . . . . . . . 1 . . . . 1 . 1 . . . . 2 . . . . . . 1 . 1 . 1 . . Unauthorized Hacks 152 | . 6 1 4 1 8 2 . . . . 7 . 8 . . . . 11 . 8 . . . . 10 . 3 9 . . 8 7 8 6 11 9 19 6 Terminals 116 | . 6 1 4 1 7 . . . . . 5 . 8 . . . . 7 . 5 . . . . 4 . 1 9 . . 8 5 8 4 6 9 12 6 Track 8 | . . . . . . . . . . . . . . . . . . . . . . . . . . . . . . . 1 . 1 . . 1 4 1 Assimilate 19 | . . . . . . . . . . . 1 . 1 . . . . 4 . . . . . . 1 . 1 2 . . 1 2 2 . 1 1 1 1 Botnet 84 | . 6 1 3 1 7 . . . . . 4 . 7 . . . . 2 . 5 . . . . 3 . . 5 . . 6 3 5 4 5 7 6 4 Disrupt 3 | . . . 1 . . . . . . . . . . . . . . . . . . . . . . . . 2 . . . . . . . . . . Operators 2 | . . . . . . . . . . . . . . . . . . 1 . . . . . . . . . . . . . . . . . . 1 . Fabricators 35 | . . . . . . 2 . . . . 2 . . . . . . 4 . 3 . . . . 6 . 2 . . . . 2 . 2 5 . 7 . Report 5 | . . . . . . . . . . . . . . . . . . 1 . 1 . . . . 1 . . . . . . . . . 1 . 1 . Prioritize 15 | . . . . . . 1 . . . . 1 . . . . . . 1 . 1 . . . . 3 . 1 . . . . 1 . 1 2 . 3 . Siphon 15 | . . . . . . 1 . . . . 1 . . . . . . 2 . 1 . . . . 2 . 1 . . . . 1 . 1 2 . 3 . Repair Stations . | . . . . . . . . . . . . . . . . . . . . . . . . . . . . . . . . . . . . . . . Recycling Units 1 | . . . . . 1 . . . . . . . . . . . . . . . . . . . . . . . . . . . . . . . . . Tunnel 1 | . . . . . 1 . . . . . . . . . . . . . . . . . . . . . . . . . . . . . . . . . Scanalyzers . | . . . . . . . . . . . . . . . . . . . . . . . . . . . . . . . . . . . . . . . Garrison Access . | . . . . . . . . . . . . . . . . . . . . . . . . . . . . . . . . . . . . . . . Data Cores Recovered 1 | . . . . . . . . . . . . . . . . . . . . . . . . . . . . . . . . . . . . 1 . . Used . | . . . . . . . . . . . . . . . . . . . . . . . . . . . . . . . . . . . . . . . Hacking Detections 144 | . 6 1 6 1 10 4 . . . . 8 . 16 . . . . 10 . 9 . 1 . . 8 . 2 7 1 . 7 6 7 6 7 6 8 7 Full Trace Events 14 | . . . . . . . . . . . 4 . 5 . . . . 1 . 1 . . . . 1 . 1 . . . 1 . . . . . . . Feedback Events 1 | . . . . . . . . . . . . . . . . . . . . . . . . . 1 . . . . . . . . . . . . . Hackware Fried 1 | . . . . . . . . . . . . . . . . . . . . . . . . . 1 . . . . . . . . . . . . . Feedback Blocked . | . . . . . . . . . . . . . . . . . . . . . . . . . . . . . . . . . . . . . . . Robot Schematics Acquired 4 | . . . . . . . . . . . . . . . . 4 . . . . . . . . . . . . . . . . . . . . . . Robots Built . | . . . . . . . . . . . . . . . . . . . . . . . . . . . . . . . . . . . . . . . Matter . | . . . . . . . . . . . . . . . . . . . . . . . . . . . . . . . . . . . . . . . Time . | . . . . . . . . . . . . . . . . . . . . . . . . . . . . . . . . . . . . . . . Total Robot Build Rating . | . . . . . . . . . . . . . . . . . . . . . . . . . . . . . . . . . . . . . . . Part Schematics Acquired 53 | . . . 2 . 1 2 . . 8 . 2 . . . . 7 . 1 . 4 . . 4 . 3 . . 3 . . . 2 4 6 . 4 . . Parts Built 43 | . . . . . . 4 . . . . 6 . 4 . . . . 3 . 3 . . . . 6 . 3 . . . . 3 . 3 5 . 3 . Matter 8394 | . . . . . . 371 . . . . 506 . 636 . . . . 910 . 402 . . . . 950 . 510 . . . . 877 . 1041 1297 . 894 . Time 2663 | . . . . . . 159 . . . . 161 . 159 . . . . 288 . 142 . . . . 409 . 246 . . . . 124 . 221 572 . 182 . Total Part Build Rating 282 | . . . . . . 24 . . . . 28 . 24 . . . . 22 . 15 . . . . 40 . 16 . . . . 21 . 27 43 . 22 . Parts Repaired 20 | . . . 1 . 3 . . . . . 3 . 1 . . . . 2 . 4 . . . . . . . . . . . 2 4 . . . . . Time 661 | . . . 38 . 115 . . . . . 102 . 28 . . . . 56 . 182 . . . . . . . . . . . 76 64 . . . . . Parts Recycled . | . . . . . . . . . . . . . . . . . . . . . . . . . . . . . . . . . . . . . . . Recycled Matter . | . . . . . . . . . . . . . . . . . . . . . . . . . . . . . . . . . . . . . . . Retrieved Matter . | . . . . . . . . . . . . . . . . . . . . . . . . . . . . . . . . . . . . . . . Retrieved Components . | . . . . . . . . . . . . . . . . . . . . . . . . . . . . . . . . . . . . . . . Parts Scanalyzed 7 | . . . 2 . . 2 . . . . . . . . . . . . . 1 . . . . . . . . . . . . . . . 2 . . Part Schematics Acquired 6 | . . . 2 . . 1 . . . . . . . . . . . . . 1 . . . . . . . . . . . . . . . 2 . . Parts Damaged . | . . . . . . . . . . . . . . . . . . . . . . . . . . . . . . . . . . . . . . . Bothacking | -11 -10 -10 -9 -9 -8 -7 -7 -7 -7 -6 -6 -6 -6 -6 -6 -6 -5 -5 -5 -5 -5 -5 -5 -4 -4 -4 -4 -4 -4 -4 -4 -3 -3 -2 -2 -2 -1 -1 ------------ Run | Scr Mat Min Mat Min Mat Fac Low Low Zio Pro Fac Was Fac Low Low Dat Pro Fac Was Fac Upp Upp Zhi Pro Fac Was Fac Ext Cet Arc Hub Res Qua Res Tes Sec Acc Com Used RIF Installer . | . . . . . . . . . . . . . . . . . . . . . . . . . . . . . . . . . . . . . . . Robots Hacked . | . . . . . . . . . . . . . . . . . . . . . . . . . . . . . . . . . . . . . . . Non-combat . | . . . . . . . . . . . . . . . . . . . . . . . . . . . . . . . . . . . . . . . Combat . | . . . . . . . . . . . . . . . . . . . . . . . . . . . . . . . . . . . . . . . Robot Hacks Applied . | . . . . . . . . . . . . . . . . . . . . . . . . . . . . . . . . . . . . . . . Relay Couplers Released . | . . . . . . . . . . . . . . . . . . . . . . . . . . . . . . . . . . . . . . . Robots Rewired 10 | . . . . . . 1 . . . . . . . . . . . . . . . . . . . . . 9 . . . . . . . . . . Allies Hacked 2 | . . . . . . . . . . . . . 1 . . . . 1 . . . . . . . . . . . . . . . . . . . . Hacks Repelled . | . . . . . . . . . . . . . . . . . . . . . . . . . . . . . . . . . . . . . . . Allies | -11 -10 -10 -9 -9 -8 -7 -7 -7 -7 -6 -6 -6 -6 -6 -6 -6 -5 -5 -5 -5 -5 -5 -5 -4 -4 -4 -4 -4 -4 -4 -4 -3 -3 -2 -2 -2 -1 -1 -------- Run | Scr Mat Min Mat Min Mat Fac Low Low Zio Pro Fac Was Fac Low Low Dat Pro Fac Was Fac Upp Upp Zhi Pro Fac Was Fac Ext Cet Arc Hub Res Qua Res Tes Sec Acc Com Total Allies 70 | . . 2 . 4 . 1 . . . . 1 18 1 . . . . 4 . . . . . . 1 . 1 24 5 . 1 2 2 . 1 . 1 1 Largest Group 18 | . . 2 . 3 . 1 . . . . 1 18 17 . . . . 2 . . . . . . 1 . 1 12 9 2 1 2 2 . 1 . 1 1 Highest-Rated Group 767 | . . 48 . 40 . 20 . . . . 10 668 643 . . . . 26 . . . . . . 44 . 44 526 767 251 95 54 54 . 44 . 44 44 Highest-Rated Ally 156 | . . 31 . 31 . 20 . . . . 10 50 50 . . . . 26 . . . . . . 44 . 44 156 156 156 95 44 44 . 44 . 44 44 Total Orders 4 | . . . . . . . . . . . . . . . . . . . . . . . . . . . 4 . . . . . . . . . . . STAY 2 | . . . . . . . . . . . . . . . . . . . . . . . . . . . 2 . . . . . . . . . . . FOLLOW 2 | . . . . . . . . . . . . . . . . . . . . . . . . . . . 2 . . . . . . . . . . . Ally Attacks 258 | . . 13 . 13 . 7 . . . . . 12 26 . . . . . . . . . . . . . . 108 65 4 10 . . . . . . . Total Damage 7653 | . . 147 . 113 . 95 . . . . . 495 734 . . . . . . . . . . . . . . 3279 2219 190 381 . . . . . . . Kills 53 | . . 5 . 1 . 1 . . . . . 1 6 . . . . . . . . . . . . . . 24 12 2 1 . . . . . . . Allies Corrupted 2 | . . . . . . . . . . . . . . . . . . . . . . . . . . . . . . . 1 . . . . . . 1 Allies Melted . | . . . . . . . . . . . . . . . . . . . . . . . . . . . . . . . . . . . . . . . Intel | -11 -10 -10 -9 -9 -8 -7 -7 -7 -7 -6 -6 -6 -6 -6 -6 -6 -5 -5 -5 -5 -5 -5 -5 -4 -4 -4 -4 -4 -4 -4 -4 -3 -3 -2 -2 -2 -1 -1 ------- Run | Scr Mat Min Mat Min Mat Fac Low Low Zio Pro Fac Was Fac Low Low Dat Pro Fac Was Fac Upp Upp Zhi Pro Fac Was Fac Ext Cet Arc Hub Res Qua Res Tes Sec Acc Com Robot Analysis Total 5 | . . . . . . . . . . . . . . . . . . . . . . . 4 . . . . 1 . . . . . . . . . . Derelict Logs Recovered 16 | . . 3 . 2 . . 1 2 2 . . . . . 2 . 2 . . . 1 . . 1 . . . . . . . . . . . . . . Drone Launches . | . . . . . . . . . . . . . . . . . . . . . . . . . . . . . . . . . . . . . . . Drone Recoveries . | . . . . . . . . . . . . . . . . . . . . . . . . . . . . . . . . . . . . . . . Exploration | -11 -10 -10 -9 -9 -8 -7 -7 -7 -7 -6 -6 -6 -6 -6 -6 -6 -5 -5 -5 -5 -5 -5 -5 -4 -4 -4 -4 -4 -4 -4 -4 -3 -3 -2 -2 -2 -1 -1 ------------- Run | Scr Mat Min Mat Min Mat Fac Low Low Zio Pro Fac Was Fac Low Low Dat Pro Fac Was Fac Upp Upp Zhi Pro Fac Was Fac Ext Cet Arc Hub Res Qua Res Tes Sec Acc Com Turns Passed 28489 | 75 1883 2336 2669 1337 3920 1106 305 453 1361 419 648 336 758 168 78 175 131 1180 224 795 435 144 68 346 915 59 421 750 303 78 334 522 596 517 1138 766 282 458 Spaces Moved 26519 | 41 677 793 802 446 1213 492 176 257 813 210 1046 458 1089 421 228 183 328 1407 569 977 655 294 142 529 1420 129 582 1011 229 61 558 774 1193 747 1825 1743 832 1169 Core 12 | 12 . . . . . . . . . . . . . . . . . . . . . . . . . . . . . . . . . . . . . . Treads 5908 | 29 677 793 802 446 1213 492 176 257 813 210 . . . . . . . . . . . . . . . . . . . . . . . . . . . . Legs . | . . . . . . . . . . . . . . . . . . . . . . . . . . . . . . . . . . . . . . . Wheels . | . . . . . . . . . . . . . . . . . . . . . . . . . . . . . . . . . . . . . . . Hover . | . . . . . . . . . . . . . . . . . . . . . . . . . . . . . . . . . . . . . . . Flight 20448 | . . . . . . . . . . . 1046 458 1089 421 228 183 328 1407 569 977 655 294 142 529 1420 129 582 1011 229 61 558 774 1193 747 1825 1689 806 1098 Fastest Speed 20 | 50 160 260 260 260 160 167 167 167 167 167 34 34 34 34 34 34 34 32 34 34 34 34 34 34 34 34 34 34 34 34 34 34 35 35 20 20 20 20 Average Speed 75 | 136 230 260 260 260 266 167 167 167 167 167 34 34 34 34 34 34 34 33 34 34 34 34 34 34 34 34 34 34 34 34 34 34 35 35 28 20 20 20 Slowest Speed 270 | 160 260 260 260 260 270 167 167 167 167 167 37 34 34 34 34 34 34 34 34 34 34 34 34 34 34 34 34 34 34 34 34 35 35 35 35 23 80 23 Overloaded Moves . | . . . . . . . . . . . . . . . . . . . . . . . . . . . . . . . . . . . . . . . Propulsion Burnouts . | . . . . . . . . . . . . . . . . . . . . . . . . . . . . . . . . . . . . . . . Robots Hopped 161 | . . . . . . . . . . . 13 . 10 4 . 1 . 13 . 5 . . . 1 4 . 8 20 1 1 9 5 3 8 12 9 18 16 Cave-ins Triggered . | . . . . . . . . . . . . . . . . . . . . . . . . . . . . . . . . . . . . . . . Spacefolds 50 | . . . . . . . . . . . . . . . . . . . . . . . . . . . . . . . . . . . . 20 9 21 Exploration Rate (%) 56 | 3 99 98 77 90 91 11 39 47 83 40 18 96 29 49 43 80 50 24 95 28 70 54 60 61 29 93 10 88 72 65 65 16 85 20 93 81 17 41 Regions Visited 38 Branch Regions 22 Pre-discovered Areas 15 | . . 2 . 1 1 . . 1 4 . . . . . 1 1 . . . . 1 . 3 . . . . . . . . . . . . . . . Known Exits Taken 27 | . . . . . 1 1 1 1 1 1 . . 1 1 1 1 1 . . 1 1 1 1 1 . . 1 1 1 1 1 1 1 1 1 1 1 . Unknown Exits Taken 5 | 1 1 1 1 1 . . . . . . . . . . . . . . . . . . . . . . . . . . . . . . . . . . Scrap Searched 29 | . . 1 . 2 . . . 1 4 1 . . . 2 3 . 3 . . . 5 3 . 4 . . . . . . . . . . . . . . Spaces Dug 202 | . . 7 . . 20 . . 2 . 2 . . 6 1 . . . 18 . 17 7 . . 7 29 . . . . . 15 8 11 14 20 12 6 . Terrain Destroyed 886 | . 13 14 15 . 20 . . 2 . 2 33 . 34 1 . . . 18 . 30 28 129 . 71 53 . . 72 . . 172 8 60 35 20 27 9 20 Melee 175 | . . . . . . . . 2 . 2 . . 6 1 . . . 18 . 17 7 . . 7 29 . . . . . 15 8 11 14 20 12 6 . Projectile 15 | . . . 1 . . . . . . . . . . . . . . . . . . . . . . . . . . . . . . . . . 3 11 AOE 696 | . 13 14 14 . 20 . . . . . 33 . 28 . . . . . . 13 21 129 . 64 24 . . 72 . . 157 . 49 21 . 15 . 9 Terrain Rammed . | . . . . . . . . . . . . . . . . . . . . . . . . . . . . . . . . . . . . . . . Walls Destroyed . | . . . . . . . . . . . . . . . . . . . . . . . . . . . . . . . . . . . . . . . Machines Disabled . | . . . . . . . . . . . . . . . . . . . . . . . . . . . . . . . . . . . . . . . Actions | -11 -10 -10 -9 -9 -8 -7 -7 -7 -7 -6 -6 -6 -6 -6 -6 -6 -5 -5 -5 -5 -5 -5 -5 -4 -4 -4 -4 -4 -4 -4 -4 -3 -3 -2 -2 -2 -1 -1 --------- Run | Scr Mat Min Mat Min Mat Fac Low Low Zio Pro Fac Was Fac Low Low Dat Pro Fac Was Fac Upp Upp Zhi Pro Fac Was Fac Ext Cet Arc Hub Res Qua Res Tes Sec Acc Com Total 32965 | 51 882 967 1191 582 1690 713 183 271 816 250 1284 548 1409 437 227 240 346 2036 592 1365 807 314 151 668 1737 136 794 1367 433 106 639 997 1320 937 2326 1981 870 1302 Wait 4934 | . 123 98 187 114 318 167 1 9 1 21 190 43 255 19 . 29 18 582 3 330 110 2 . 125 226 1 205 270 188 40 57 202 86 157 409 143 27 178 Move 26074 | 40 676 792 801 445 1212 491 175 256 812 209 1021 457 1068 414 227 180 327 1381 568 966 654 293 141 526 1412 128 566 973 226 58 539 763 1186 731 1800 1691 779 1090 Hop 147 | . . . . . . . . . . . 12 . 10 2 . 1 . 13 . 5 . . . 1 4 . 7 17 1 1 9 5 3 7 12 8 17 12 Pick Up 149 | 2 11 10 28 1 15 5 . . . . 5 1 7 . . 1 . 7 3 5 2 . 1 . 7 1 1 1 . . . 5 6 3 7 8 5 1 Fast Attach 88 | 6 2 . 7 . 4 2 . . . 1 4 2 4 . . . . 3 6 2 . . 2 . 4 . 1 . 1 . . 1 3 . 7 19 3 4 Attach 59 | . 1 3 6 1 4 2 . . . 1 6 . 1 . . . . 5 . . . . . . 3 . . . . . . 3 1 3 4 5 8 2 Detach 4 | . . . . . . . . . . . . . . . . . . . . . . . . . . . . . . . . . . . 1 3 . . Swap 180 | . 4 8 21 . 19 3 . 1 2 5 10 2 13 . . 1 1 7 1 8 4 5 . 2 7 1 2 1 6 1 6 2 2 4 12 15 3 1 Drop 188 | . 1 3 41 1 18 10 . . 1 1 13 3 11 . . 1 . 8 8 5 2 . 2 . 8 1 2 1 1 . . 4 4 1 13 16 8 . Fire 664 | 3 58 45 91 18 93 29 . 3 . 10 20 40 21 . . . . 8 3 14 12 11 . 6 29 4 2 26 10 6 8 . 9 11 24 33 3 14 Melee 319 | . . . . . . . . 2 . 2 . . 6 2 . 27 . 21 . 20 18 3 5 8 37 . . 2 . . 20 12 20 20 37 40 17 . Ram . | . . . . . . . . . . . . . . . . . . . . . . . . . . . . . . . . . . . . . . . Kick . | . . . . . . . . . . . . . . . . . . . . . . . . . . . . . . . . . . . . . . . Crush 41 | . 6 8 9 2 7 2 7 . . . . . . . . . . . . . . . . . . . . . . . . . . . . . . . Escape Stasis 56 | . . . . . . . . . . . 3 . 13 . . . . . . 10 . . . . . . 8 22 . . . . . . . . . . Rewire 57 | . . . . . . 2 . . . . . . . . . . . 1 . . . . . . . . . 54 . . . . . . . . . . Trap 5 | . . . . . . . . . . . . . . . . . . . . . 5 . . . . . . . . . . . . . . . . . Miscellaneous . | . . . . . . . . . . . . . . . . . . . . . . . . . . . . . . . . . . . . . . . Route ------- -11/Scrapyard -10/Materials (discovered 4 exits: *Mat x3 / *Min) -10/Mines (discovered 2 exits: *Mat x2) -9/Materials (discovered 4 exits: *Mat / *Min / *Sto x2) -9/Mines (discovered 2 exits: *Mat x2) -8/Materials (discovered 2 exits: *Fac x2) -7/Factory -7/Lower Caves -7/Lower Caves (discovered 2 exits: *Fac / *Zio) -7/Zion -6/Proximity Caves -6/Factory (discovered 2 exits: *Fac / *Low) -6/Waste -6/Factory (discovered 4 exits: *Fac x2 / *Low x2) -6/Lower Caves -6/Lower Caves -6/Data Miner -5/Proximity Caves -5/Factory (discovered 4 exits: Fac x2 / Upp x2) -5/Waste -5/Factory (discovered 4 exits: *Fac x2 / *Upp x2) -5/Upper Caves -5/Upper Caves -5/Zhirov -4/Proximity Caves -4/Factory (discovered 5 exits: *Upp x2 / Ext x2 / Arm) -4/Waste -4/Factory (discovered 2 exits: *Upp / *Ext) -4/Extension (discovered 2 exits: *Res / *Cet) -4/Cetus -4/Archives (discovered 2 exits: *Res / *Hub) -4/Hub_04(d) (discovered 4 exits: *Res x4) -3/Research (discovered 2 exits: *Qua x2) -3/Quarantine -2/Research (discovered 2 exits: *Tes x2) -2/Testing (discovered 2 exits: *Acc / *Sec) -2/Section 7 -1/Access -1/Command (discovered 2 exits: *Sur x2) To Epsilon Eridani History --------- Turn | Location | Event 26 | -11/Scrapyard | Discovered new exit (range 14) 76 | -11/Scrapyard | Entered Materials 314 | -10/Materials | Build established: Mutant 472 | -10/Materials | Discovered new exit (range 11) 755 | -10/Materials | Discovered new exit (range 14) 966 | -10/Materials | Discovered new exit (range 16) 1466 | -10/Materials | Discovered new exit (range 15) 1959 | -10/Materials | Entered Mines 2021 | -10/Mines | Learned location of Mines (-9) 2579 | -10/Mines | Learned location of Storage (-9) 2867 | -10/Mines | Joined a pair of Derelicts in attacking an 0b10 outpost 3047 | -10/Mines | Discovered new exit (range 16) 3164 | -10/Mines | Discovered new exit (range 12) 3458 | -10/Mines | Excavation squad dispatched 3458 | -10/Mines | A large section of the Mines collapsed 3466 | -10/Mines | Core integrity fell below 50% 3889 | -10/Mines | Core integrity fell below 20% 4295 | -10/Mines | Entered Materials 4295 | -9/Materials | Evolved 2 slots: Utility x1, Weapon x1 4296 | -9/Materials | Identified exit to Storage 4556 | -9/Materials | Discovered exit to Storage (range 10) 4875 | -9/Materials | Build established: Scavenger-Tank 5895 | -9/Materials | First assault squad dispatched 5939 | -9/Materials | Destroyed 7 combat bots 6087 | -9/Materials | Discovered new exit (range 9) 6338 | -9/Materials | Build established: Tank 6383 | -9/Materials | Repaired Imp. Heat Sink 6867 | -9/Materials | Discovered new exit (range 8) 6964 | -9/Materials | Entered Mines 6975 | -9/Mines | Escorted by a lone wolf Derelict 7065 | -9/Mines | Assembled infested the area 7540 | -9/Mines | Learned 2 Materials zone layouts 7744 | -9/Mines | Assisted by bots powering up and referring to "LRC-V3" 8083 | -9/Mines | Learned 2 Materials zone layouts 8102 | -9/Mines | Discovered new exit (range 12) 8290 | -9/Mines | Discovered new exit (range 4) 8301 | -9/Mines | Entered Materials 8301 | -8/Materials | Evolved 2 slots: Propulsion x1, Utility x1 8302 | -8/Materials | Identified exit to Factory 8619 | -8/Materials | Build established: Scavenger-Tank 8693 | -8/Materials | Garrison activated, responded to threat 9375 | -8/Materials | Repaired Hvy. Ion Engine 9617 | -8/Materials | Build established: Tank 9808 | -8/Materials | Discovered exit to Factory (range 5) 10184 | -8/Materials | Repaired Shotgun 10218 | -8/Materials | Repaired Shotgun 12154 | -8/Materials | Build established: Mutant 12221 | -8/Materials | Entered Factory 12221 | -7/Factory | Evolved 2 slots: Propulsion x1, Utility x1 12509 | -7/Factory | Build established: Tank 12706 | -7/Factory | Fabricated Nuclear Pulse Array (x2) 12769 | -7/Factory | Fabricated Nuclear Pulse Array? 13111 | -7/Factory | Local fabrication network quarantined 13231 | -7/Factory | Discovered new exit (range 15) 13319 | -7/Factory | Identified exit to Lower Caves 13327 | -7/Factory | Entered Lower Caves 13393 | -7/Lower Caves | Encountered a Warlord checkpoint 13594 | -7/Lower Caves | Discovered new exit (range 10) 13603 | -7/Lower Caves | Build established: Skirmisher 13607 | -7/Lower Caves | Identified exit to Lower Caves 13632 | -7/Lower Caves | Entered another Lower Caves area 13648 | -7/Lower Caves | Discovered new exit (range 10) 13797 | -7/Lower Caves | Learned location of Zion (-7) 13969 | -7/Lower Caves | Learned Factory garrison access intel 14053 | -7/Lower Caves | Discovered new exit (range 9) 14064 | -7/Lower Caves | Identified exit to Zion 14085 | -7/Lower Caves | Entered Zion 14184 | -7/Zion | Learned Factory emergency access door positions 14241 | -7/Zion | Discovered new exit (range 8) 14317 | -7/Zion | Build established: Mutant 14331 | -7/Zion | System corruption cleaned by Quarantine Array 14393 | -7/Zion | Learned location of Testing (-2) 14414 | -7/Zion | Learned Factory repair station intel 14543 | -7/Zion | Learned location of Warlord (-4) 14583 | -7/Zion | Given A8's code to call for help 14690 | -7/Zion | Learned Factory emergency access door positions 14798 | -7/Zion | Learned location of Quarantine (-3) 14864 | -7/Zion | Given the Hacking Drone Bay 15441 | -7/Zion | Identified exit to Proximity Caves 15446 | -7/Zion | Entered Proximity Caves 15523 | -6/Proximity Caves | Attracted the attention of an 0b10 checkpoint 15851 | -6/Proximity Caves | Discovered new exit (range 6) 15858 | -6/Proximity Caves | Identified exit to Factory 15865 | -6/Proximity Caves | Entered Factory 15865 | -6/Factory | Evolved 2 slots: Propulsion x2 15867 | -6/Factory | Loaded intel: 6 repair station locations 15868 | -6/Factory | Loaded intel: 4 garrison access locations 15961 | -6/Factory | Repaired Shotgun 15994 | -6/Factory | Repaired Shotgun? 16015 | -6/Factory | Discovered new exit (range 15) 16020 | -6/Factory | Identified exit to Factory 16025 | -6/Factory | Fabricated Flak Gun? 16040 | -6/Factory | Repaired Hrd. Medium Armor Plating? 16154 | -6/Factory | Fabricated Flak Gun (x2) 16233 | -6/Factory | Discovered new exit (range 5) 16234 | -6/Factory | Identified exit to Lower Caves 16407 | -6/Factory | Central database locked down 16456 | -6/Factory | Fabricated Nuclear Pulse Array (x2) 16513 | -6/Factory | Manually triggered Chute Trap 16513 | -6/Factory | Sucked down chute 16513 | -6/Factory | Entered Waste 16521 | -6/Waste | Spotted C-40 Crusher 16537 | -6/Waste | Spotted C-40 Crusher 16542 | -6/Waste | Destroyed C-40 Crusher 16556 | -6/Waste | Spotted C-40 Crusher 16576 | -6/Waste | Spotted C-40 Crusher 16582 | -6/Waste | Destroyed C-40 Crusher 16599 | -6/Waste | Destroyed C-40 Crusher 16621 | -6/Waste | Spotted C-40 Crusher 16638 | -6/Waste | Destroyed C-40 Crusher 16671 | -6/Waste | Destroyed C-40 Crusher 16696 | -6/Waste | Found Prototype Device 16696 | -6/Waste | Identified Exp. Transmission Jammer 16710 | -6/Waste | Warlord forces began an assault 16741 | -6/Waste | Spotted C-40 Crusher 16747 | -6/Waste | Allies destroyed C-40 Crusher 16751 | -6/Waste | Discovered new exit (range 16) 16809 | -6/Waste | Identified exit to Factory 16849 | -6/Waste | Entered Factory 16849 | -6/Factory | Accompanied by 17 allies 16916 | -6/Factory | Garrison activated, responded to threat 16971 | -6/Factory | Discovered exit to Factory (range 15) 17063 | -6/Factory | Discovered exit to Factory (range 19) 17153 | -6/Factory | Fabricated Adv. Weapon Cycler (x2) 17163 | -6/Factory | Spotted B-75 Beast 17337 | -6/Factory | Repaired Nuclear Pulse Array 17406 | -6/Factory | Fabricated Mak. Power Source? 17443 | -6/Factory | Local fabrication network quarantined 17607 | -6/Factory | Entered Lower Caves 17761 | -6/Lower Caves | Build established: Machinist-Mutant 17764 | -6/Lower Caves | Discovered new exit (range 15) 17775 | -6/Lower Caves | Identified exit to Lower Caves 17775 | -6/Lower Caves | Entered another Lower Caves area 17796 | -6/Lower Caves | Learned location of 1 exit from Factory 17834 | -6/Lower Caves | Discovered new exit (range 15) 17839 | -6/Lower Caves | Identified exit to Data Miner 17853 | -6/Lower Caves | Entered Data Miner 17853 | -6/Data Miner | Discovered new exit (range 6) 17860 | -6/Data Miner | Met Data Miner 17866 | -6/Data Miner | Learned location of Section 7 (-2) 17866 | -6/Data Miner | Acquired the access code to Warlord's prototype stash 17872 | -6/Data Miner | Received God Mode back door access code from Data Miner 17881 | -6/Data Miner | Destroyed Data Miner 17885 | -6/Data Miner | Found Prototype Hackware 17886 | -6/Data Miner | Data Conduit disabled 18028 | -6/Data Miner | Identified exit to Proximity Caves 18028 | -6/Data Miner | Entered Proximity Caves 18033 | -5/Proximity Caves | Learned location of 1 exit from Factory 18087 | -5/Proximity Caves | Learned Factory emergency access door positions 18146 | -5/Proximity Caves | Discovered exit to Factory (range 9) 18159 | -5/Proximity Caves | Entered Factory 18159 | -5/Factory | Evolved 2 slots: Utility x2 18159 | -5/Factory | Identified Deep Network Scanner 18160 | -5/Factory | Identified exit to Factory 18293 | -5/Factory | Spotted B-75 Beast 18301 | -5/Factory | Identified exit to Upper Caves 18319 | -5/Factory | Repaired Nuclear Pulse Array? 18445 | -5/Factory | Build established: Hacker-Mutant 18493 | -5/Factory | Fabricated Exp. Sensor Array? 18644 | -5/Factory | Fabricated Exp. Sensor Array? 18797 | -5/Factory | Garrison activated, responded to threat 18844 | -5/Factory | Repaired Nuclear Pulse Array? 19252 | -5/Factory | Fabricated Mni. Smartbomb Launcher? 19317 | -5/Factory | Build established: Wizard-Mutant 19339 | -5/Factory | Manually triggered Chute Trap 19339 | -5/Factory | Sucked down chute 19339 | -5/Factory | Entered Waste 19339 | -5/Waste | The area was eerily silent 19378 | -5/Waste | Found Prototype Device 19378 | -5/Waste | Identified Exp. Thermal Shield 19405 | -5/Waste | Found Prototype Device 19405 | -5/Waste | Identified Exp. Focal Shield 19416 | -5/Waste | Discovered new exit (range 13) 19563 | -5/Waste | Identified exit to Factory 19563 | -5/Waste | Entered Factory 19682 | -5/Factory | Repaired Nuclear Pulse Array 19725 | -5/Factory | Discovered exit to Factory (range 5) 19795 | -5/Factory | Central database locked down 19846 | -5/Factory | Repaired Imp. Propulsion Shielding? 19855 | -5/Factory | Build established: Hacker-Mutant 19974 | -5/Factory | Repaired Flak Gun 20020 | -5/Factory | Repaired Flak Gun 20064 | -5/Factory | Discovered exit to Factory (range 3) 20106 | -5/Factory | Fabricated Force Lance? 20152 | -5/Factory | Fabricated Flak Gun? 20356 | -5/Factory | Local fabrication network quarantined 20358 | -5/Factory | Entered Upper Caves 20406 | -5/Upper Caves | Attracted the attention of an 0b10 checkpoint 20505 | -5/Upper Caves | Encountered a Warlord checkpoint 20791 | -5/Upper Caves | Discovered new exit (range 8) 20793 | -5/Upper Caves | Identified exit to Upper Caves 20793 | -5/Upper Caves | Entered another Upper Caves area 20841 | -5/Upper Caves | Destroyed 9 combat bots 20888 | -5/Upper Caves | Spotted B-75 Beast 20932 | -5/Upper Caves | Discovered new exit (range 16) 20937 | -5/Upper Caves | Identified exit to Zhirov 20937 | -5/Upper Caves | Entered Zhirov 20937 | -5/Zhirov | Discovered new exit (range 3) 20944 | -5/Zhirov | Met Zhirov 20950 | -5/Zhirov | Learned location of Command (-1) 20953 | -5/Zhirov | Zhirov requested help retrieving the SGEMP Prototype 20958 | -5/Zhirov | Found Alien Artifact 20958 | -5/Zhirov | Identified Integrated Reactor 20958 | -5/Zhirov | Installed Integrated Reactor, increased core energy generation (+10) 21005 | -5/Zhirov | Identified exit to Proximity Caves 21005 | -5/Zhirov | Entered Proximity Caves 21014 | -4/Proximity Caves | Attracted the attention of an 0b10 checkpoint 21137 | -4/Proximity Caves | Learned Research garrison access intel 21343 | -4/Proximity Caves | Discovered exit to Factory (range 12) 21351 | -4/Proximity Caves | Entered Factory 21351 | -4/Factory | Evolved 2 slots: Utility x1, Weapon x1 21352 | -4/Factory | Identified exit to Extension 21418 | -4/Factory | Identified exit to Upper Caves 21418 | -4/Factory | Identified exit to Armory 21573 | -4/Factory | Deep Network Scanner fried by hacking feedback 21669 | -4/Factory | Central database locked down 21767 | -4/Factory | Fabricated Field Propulsion Array (x2) 21837 | -4/Factory | Fabricated Field Propulsion Array (x2) 22182 | -4/Factory | Fabricated Imp. Hacking Suite (x1) 22239 | -4/Factory | Local fabrication network quarantined 22243 | -4/Factory | Fabricated Mni. Fusion Reactor? 22266 | -4/Factory | Manually triggered Chute Trap 22266 | -4/Factory | Sucked down chute 22266 | -4/Factory | Entered Waste 22278 | -4/Waste | Spotted C-40 Crusher 22281 | -4/Waste | EMP discharged 22284 | -4/Waste | Spotted C-40 Crusher 22285 | -4/Waste | Spotted C-40 Crusher 22286 | -4/Waste | Spotted C-40 Crusher 22297 | -4/Waste | Spotted C-40 Crusher 22303 | -4/Waste | Destroyed C-40 Crusher 22317 | -4/Waste | Spotted C-40 Crusher 22318 | -4/Waste | Discovered new exit (range 14) 22324 | -4/Waste | Identified exit to Factory 22325 | -4/Waste | Entered Factory 22397 | -4/Factory | Discovered exit to Upper Caves (range 8) 22453 | -4/Factory | Spotted B-86 Titan 22588 | -4/Factory | Fabricated Exp. Sensor Array (x1) 22625 | -4/Factory | Local fabrication network quarantined 22632 | -4/Factory | Fabricated Flak Gun (x2) 22730 | -4/Factory | Discovered exit to Extension (range 16) 22746 | -4/Factory | Entered Extension 22746 | -4/Extension | Accompanied by 1 ally 22764 | -4/Extension | Rescued a captive Derelict 22764 | -4/Extension | Rescued a captive Derelict 22781 | -4/Extension | Rescued a captive Derelict 22890 | -4/Extension | Rescued a captive Derelict 22891 | -4/Extension | Rescued a captive Derelict 22900 | -4/Extension | Rescued a captive Derelict 22900 | -4/Extension | Rescued a captive Derelict 23156 | -4/Extension | Spotted B-86 Titan 23176 | -4/Extension | Allies destroyed B-86 Titan 23179 | -4/Extension | Spotted B-86 Titan 23193 | -4/Extension | Destroyed B-86 Titan 23221 | -4/Extension | Disrupted transfer network 23229 | -4/Extension | Rescued a captive Derelict 23230 | -4/Extension | Rescued a captive Derelict 23290 | -4/Extension | Central database locked down 23362 | -4/Extension | Rescued a captive Derelict 23373 | -4/Extension | Rescued a captive Derelict 23386 | -4/Extension | Rescued a captive Derelict 23402 | -4/Extension | Rescued A7 23474 | -4/Extension | Discovered new exit (range 10) 23475 | -4/Extension | Discovered new exit (range 6) 23488 | -4/Extension | Identified exit to Cetus 23496 | -4/Extension | First assault squad dispatched 23496 | -4/Extension | Entered Cetus 23496 | -4/Cetus | Accompanied by 6 allies (A7) 23501 | -4/Cetus | Acquired a Cetus Manufacturing Module code from A7 23514 | -4/Cetus | Spotted Cetus Guard 23516 | -4/Cetus | Spotted Cetus Guard 23516 | -4/Cetus | Spotted Cetus Guard 23527 | -4/Cetus | Allies destroyed Cetus Guard 23533 | -4/Cetus | Allies destroyed Cetus Guard 23538 | -4/Cetus | Allies destroyed Cetus Guard 23584 | -4/Cetus | Started Cetus Manufacturing Module 23591 | -4/Cetus | Escorted A7 to Cetus Mainframe 23609 | -4/Cetus | Manufactured an Enhanced Grunt 23634 | -4/Cetus | Manufactured an Enhanced Grunt 23659 | -4/Cetus | Manufactured an Enhanced Grunt 23684 | -4/Cetus | Manufactured an Enhanced Grunt 23709 | -4/Cetus | Manufactured an Enhanced Grunt 23743 | -4/Cetus | Discovered new exit (range 16) 23748 | -4/Cetus | Identified exit to Archives 23799 | -4/Cetus | Entered Archives 23799 | -4/Archives | Accompanied by 2 allies (A7) 23804 | -4/Archives | Received a hacking code to weaken MAIN.C 23850 | -4/Archives | Discovered new exit (range 15) 23855 | -4/Archives | Discovered new exit (range 15) 23859 | -4/Archives | Identified exit to Hub_04(d) 23877 | -4/Archives | Entered Hub_04(d) 23877 | -4/Hub_04(d) | Accompanied by 1 ally 24024 | -4/Hub_04(d) | Discovered new exit (range 15) 24154 | -4/Hub_04(d) | Spotted B-86 Titan 24186 | -4/Hub_04(d) | Identified exit to Research 24209 | -4/Hub_04(d) | Network Hub disabled 24211 | -4/Hub_04(d) | Entered Research 24211 | -3/Research | Evolved 2 slots: Utility x2 24212 | -3/Research | Loaded intel: 4 garrison access locations 24269 | -3/Research | Identified exit to Quarantine 24350 | -3/Research | Repaired Field Propulsion Array 24375 | -3/Research | Central database locked down 24459 | -3/Research | Fabricated Exp. Hacking Suite (x1) 24491 | -3/Research | Fabricated Exp. Hacking Suite (x1) 24523 | -3/Research | Fabricated Exp. Hacking Suite (x1) 24702 | -3/Research | Local fabrication network quarantined 24724 | -3/Research | Repaired Flak Gun? 24733 | -3/Research | Entered Quarantine 24742 | -3/Quarantine | Cryocooling Duct disabled 24757 | -3/Quarantine | Ambient heat levels rising (+20) 24757 | -3/Quarantine | Non-combat units ordered to evacuate 24781 | -3/Quarantine | Repaired Flak Gun? 24808 | -3/Quarantine | Repaired Flak Gun? 24848 | -3/Quarantine | Repaired Flak Gun? 24853 | -3/Quarantine | Found Alien Artifact 24986 | -3/Quarantine | Found Alien Artifact 25010 | -3/Quarantine | Identified Subatomic Replicator 25010 | -3/Quarantine | Identified Dimensional Node Initializer 25014 | -3/Quarantine | Found Alien Artifact 25019 | -3/Quarantine | Identified Hpw. Transdimensional Reconstructor 25053 | -3/Quarantine | Identified exit to Research 25068 | -3/Quarantine | Found Alien Artifact 25080 | -3/Quarantine | Identified Core Reset Matrix 25123 | -3/Quarantine | Repaired Adv. Weapon Cycler? 25329 | -3/Quarantine | Entered Research 25329 | -2/Research | Evolved 2 slots: Utility x2 25437 | -2/Research | Identified exit to Testing 25531 | -2/Research | Fabricated Imp. Q-thruster (x1) 25586 | -2/Research | Fabricated Imp. Q-thruster (x1) 25643 | -2/Research | Fabricated Imp. Q-thruster (x1) 25846 | -2/Research | Entered Testing 25904 | -2/Testing | Found Prototype Hackware 25988 | -2/Testing | Identified Ghost Barrier 26020 | -2/Testing | Discovered new exit (range 13) 26125 | -2/Testing | Fabricated Imp. Q-thruster? 26210 | -2/Testing | Found Exp. Target Analyzer 26261 | -2/Testing | Fabricated Imp. Q-thruster? 26432 | -2/Testing | Fabricated Hyp. Railgun? 26455 | -2/Testing | Spotted Striker 26455 | -2/Testing | Spotted Striker 26456 | -2/Testing | Build established: Wizard-Sprinter 26460 | -2/Testing | Found Prototype Device 26528 | -2/Testing | Fabricated Imp. Q-thruster? 26831 | -2/Testing | Local fabrication network quarantined 26885 | -2/Testing | Found Prototype Hackware 26886 | -2/Testing | Identified System Mapper 26902 | -2/Testing | Spotted CN-HR6(K) 26902 | -2/Testing | Spotted FW-ZDY(K) 26902 | -2/Testing | Spotted W5-D5C(K) 26970 | -2/Testing | Spotted Fortress 26984 | -2/Testing | Discovered new exit (range 5) 26984 | -2/Testing | Identified exit to Section 7 26984 | -2/Testing | Entered Section 7 26995 | -2/Section 7 | Identified exit to Access 27048 | -2/Section 7 | Identified AEGIS Remote Shield 27171 | -2/Section 7 | Found Alien Artifact 27176 | -2/Section 7 | Identified Spacefold Activator 27182 | -2/Section 7 | Found Enh. Force Lance 27194 | -2/Section 7 | Spotted S7 Guard 27204 | -2/Section 7 | Found Alien Artifact 27211 | -2/Section 7 | Identified Core Regenerator 27244 | -2/Section 7 | Spotted B-90 Cyclops 27257 | -2/Section 7 | Spotted Executioner 27260 | -2/Section 7 | Spotted Executioner 27312 | -2/Section 7 | Destroyed Executioner 27319 | -2/Section 7 | Found Exp. Targeting Computer 27354 | -2/Section 7 | Spotted B-99 Colossus 27370 | -2/Section 7 | Found Alien Artifact 27370 | -2/Section 7 | Identified LRC Armor 27370 | -2/Section 7 | Installed LRC Armor, increased core integrity (+250) 27377 | -2/Section 7 | Found Alien Artifact 27377 | -2/Section 7 | Identified LRC Matter Compressor 27377 | -2/Section 7 | Installed LRC Matter Compressor, increased matter storage capacity (+125) 27394 | -2/Section 7 | Found Alien Artifact 27394 | -2/Section 7 | Identified Integrated Dissipator 27394 | -2/Section 7 | Installed Integrated Dissipator, increased core heat dissipation (+20) 27478 | -2/Section 7 | Found Integrated Reactor 27478 | -2/Section 7 | Installed Integrated Reactor, increased core energy generation (+10) 27480 | -2/Section 7 | Found Integrated Reactor 27480 | -2/Section 7 | Installed Integrated Reactor, increased core energy generation (+10) 27481 | -2/Section 7 | Found Integrated Reactor 27481 | -2/Section 7 | Installed Integrated Reactor, increased core energy generation (+10) 27526 | -2/Section 7 | Destroyed Executioner 27530 | -2/Section 7 | Found Exp. Targeting Computer 27672 | -2/Section 7 | Found Alien Artifact 27677 | -2/Section 7 | Identified Integrated Mediator 27677 | -2/Section 7 | Installed Integrated Mediator, increased core attachment efficiency. 27734 | -2/Section 7 | Core integrity fell below 50% 27750 | -2/Section 7 | Entered Access 27750 | -1/Access | Evolved 2 slots: Utility x2 27766 | -1/Access | Identified exit to Command 27814 | -1/Access | Fabricated Exp. Propulsion Shielding (x1) 27837 | -1/Access | Fabricated Adv. Powered Armor (x1) 27879 | -1/Access | Spotted B-99 Colossus 27945 | -1/Access | Fabricated Exp. Weapon Cycler? 27946 | -1/Access | Local fabrication network quarantined 28002 | -1/Access | Used Core Regenerator, restored core integrity (+462) 28017 | -1/Access | Used Subatomic Replicator to replicate Imp. Q-thruster 28032 | -1/Access | Entered Command 28057 | -1/Command | Disengaged cave seal 28107 | -1/Command | Discovered new exit (range 15) 28110 | -1/Command | Spotted B-99 Colossus 28144 | -1/Command | Spotted Combat Programmer 28239 | -1/Command | Core integrity fell below 50% 28239 | -1/Command | Spotted M Guard 28239 | -1/Command | Spotted Combat Programmer 28241 | -1/Command | Spotted M Guard 28253 | -1/Command | Met MAIN.C 28254 | -1/Command | 0b10 Conduit disabled 28267 | -1/Command | Spotted B-99 Colossus 28273 | -1/Command | Found Prototype Device 28273 | -1/Command | Identified Exp. Phase Shifter 28276 | -1/Command | Found Prototype Reactor 28276 | -1/Command | Identified Zero-point Reactor 28279 | -1/Command | Found Zero-point Reactor 28305 | -1/Command | Core integrity fell below 20% 28488 | -1/Command | Discovered new exit (range 10) 28490 | -1/Command | Identified exit to Surface 28490 | *** | Escaped! Last Messages --------------- 28458_ Connecting with Terminal... >>Layout(Zone) Retrieving Zone 2Y layout... Downloaded map data. 28459_ Director 10b reveals location of hidden door. 28467_ O-32 Director: "IFF HANDSHAKE FAILED. SECURING TERMINAL." 28467_ Penetrated by Slug. 28467_ Slug penetrates Wall. 28468_ System corrupted: Heat flow error (+142). 28468_ Director 10b reports 0b10 security level has risen to 3. 28469_ C-30 ARC bursts open, deploying its payload. 28469_ H-88 Terminator unfolds itself. 28470_ Penetrated by Slug. 28470_ Slug penetrates Wall. 28472_ Director 10b reveals location of hidden door. 28472_ Dimensional Manipulator destroyed. 28473_ Director 10b reports 0b10 security level has lowered to 2. 28473_ Director 10b reveals location of hidden door. 28488_ EXIT=FOUND 28490_ EXIT=IDENTIFIED: SURFACE Map ----- +----------------------------------------------------+ | ??? ?????????????????????????????????????????????? | | ??? ?????????????????????????????????????????????? | | ???!?????##############################+##????#### | | ??? ?????# """T""" # ^ #????#""" | | ?##/##???# """ """ # #????#"" | | ## ##### + ###??#""" | | + # """ ""#??#""" | | ## ##### * # ""T"" ""#??#" | | ?## ##???# # "" "" ""#??#"" | | ??# #????#!!! # T#??#"" | | ### #????#!! # ^ ""#??# " | | #????#!! # ""#??# " | | ### ####################### ^ ""#??# " | | ### #? #???# !! # w###??#" | | + #? #???# !! # """" #????#""p | | # #?? #???# # """" #????# | | # ## #???? ?? # """" #????# | | + + #????##+#####+# """" ####?# | | # # #????# ^ """ | | # ####+######## """ | | + ^ "?" | | # ##### #################### """" ###?# | | ### #???# #??????????????????# """" #???# | | ??# #???# #????????????#####?# """" #???# | | ??# #??## ###??????????# #?# """" #???#### | | +##+##?# ############ @ #?# #??????? | | #?# #?# ^ #??????? | | #?# #?# #??????? | | #?# ##+#############?#! """" #??????? | | #?## ##? #???????# """" #??????? | | #### #?? #???????# """" #??????? | | ""## #? #???????#= " "" #??????? | | ""## ## #???????# ! ^ #??????? | | ""## + #???????# = ^ #??????? | | Y"## # #?????### #??????? | | * ""## ################ ######## | | ""## | | ""## T | | #### ############ #### ## ########## # | | #??# #????#######+########## #?????#### # | | #??# #????# #???####?????#[][ = | | #??# #????# #????????????#]]] ] = | | #??# #????# #????????????#!!! = | | +######## ###### #????????????#! == | | # #????????????######## | | / #???????????????????? | | ### # """" #???????????????????? | | #?# # """" #???????????????????? | | #?# ! # """" #???????????????????? | | #?# # """" #???????????????????? | +----------------------------------------------------+ Best States ------------- Heat Dissipation 110 Energy Generation 73 Energy Capacity 840 Matter Stores 373 Matter Capacity 425 Sight Range 16 Robot Scan Range 20 Terrain Scan Density 10 Additional Mass Support 25 Armor Coverage 450 Propulsion Shielding 90 Weapon Cycling 30 Phase Shifting 20 Evasion (%) 86 Targeting Accuracy 24 Target Analysis 10 Armor Integrity Analysis 45 Recoil Reduction 4 Offensive Hacking 82 Defensive Hacking 20 Item Schematics ----------------- Mak. Power Source | -9/Materials | Scanalyzed Hacking Suite | -9/Materials | Scanalyzed Imp. Signal Interpreter | -8/Materials | Hacked Nuclear Pulse Array | -7/Factory | Hacked Lrn. Tractor Beam | -7/Factory | Scanalyzed Hvy. Riot Gun | -7/Zion | Free Battle Rifle | -7/Zion | Free Barrage Gun | -7/Zion | Free Battle Cannon | -7/Zion | Free Flamer | -7/Zion | Free Enh. Flamer | -7/Zion | Free Phasing Sabre | -7/Zion | Free Tactical Coordination Suite | -7/Zion | Free Flak Gun | -6/Factory | Hacked Hyp. Mass Driver | -6/Factory | Hacked Combat Drone Bay | -6/Data Miner | Free Lgt. Regenerative Plating | -6/Data Miner | Free Cmb. Gravmag System | -6/Data Miner | Free Exp. Sensor Array | -6/Data Miner | Free Exp. Transmission Jammer | -6/Data Miner | Free Mni. Smartbomb Launcher | -6/Data Miner | Free Plasma Sword | -6/Data Miner | Free Powered Armor | -5/Factory | Hacked Imp. Propulsion Shielding | -5/Factory | Scanalyzed Imp. Hacking Suite | -5/Factory | Hacked Exp. Propulsion Shielding | -5/Factory | Hacked Exp. Targeting Computer | -5/Factory | Hacked Assault Drone Bay | -5/Zhirov | Free Exp. Heat Sink | -5/Zhirov | Free Exp. Optical Array | -5/Zhirov | Free Imp. Arc Thrower | -5/Zhirov | Free Mni. Fusion Reactor | -4/Factory | Hacked Field Propulsion Array | -4/Factory | Hacked Imp. Armor Integrity Analyzer | -4/Factory | Hacked Impulse Thruster Array | -4/Extension | Hacked Adv. Hacking Suite | -4/Extension | Hacked Exp. Weapon Shielding | -4/Extension | Hacked Cld. Q-thruster | -3/Research | Hacked Exp. Hacking Suite | -3/Research | Hacked Adv. Powered Armor | -3/Quarantine | Hacked Exp. Signal Interpreter | -3/Quarantine | Hacked Exp. Cooling System | -3/Quarantine | Hacked Hyp. Railgun | -3/Quarantine | Hacked Exp. Weapon Cycler | -2/Research | Hacked Exp. Armor Integrity Analyzer | -2/Research | Hacked Exp. Target Analyzer | -2/Research | Hacked Imp. Q-thruster | -2/Research | Hacked Imp. Powered Armor | -2/Research | Hacked Quantum Capacitor | -2/Research | Hacked Com. Mass Driver | -2/Section 7 | Hacked Recoil Nullifier | -2/Section 7 | Hacked Centrium Medium Armor Plating | -2/Section 7 | Scanalyzed Com. Linear Accelerator | -2/Section 7 | Scanalyzed Robot Schematics ------------------ S-27 Virus | -6/Data Miner | Free G-50 Soldier | -6/Data Miner | Free X-72 Disruptor | -6/Data Miner | Free I-36 Angel | -6/Data Miner | Free Fabricated ------------ Nuclear Pulse Array | x2 | -7/Factory Nuclear Pulse Array | x2 | -7/Factory Flak Gun | x2 | -6/Factory Flak Gun | x2 | -6/Factory Nuclear Pulse Array | x2 | -6/Factory Adv. Weapon Cycler | x2 | -6/Factory | Preloaded Mak. Power Source | x2 | -6/Factory Exp. Sensor Array | x1 | -5/Factory Exp. Sensor Array | x1 | -5/Factory Mni. Smartbomb Launcher | x1 | -5/Factory Force Lance | x1 | -5/Factory | Preloaded Flak Gun | x2 | -5/Factory Field Propulsion Array | x2 | -4/Factory Field Propulsion Array | x2 | -4/Factory Imp. Hacking Suite | x1 | -4/Factory Mni. Fusion Reactor | x1 | -4/Factory Exp. Sensor Array | x1 | -4/Factory Flak Gun | x2 | -4/Factory Exp. Hacking Suite | x1 | -3/Research Exp. Hacking Suite | x1 | -3/Research Exp. Hacking Suite | x1 | -3/Research Imp. Q-thruster | x1 | -2/Research Imp. Q-thruster | x1 | -2/Research Imp. Q-thruster | x1 | -2/Research Imp. Q-thruster | x1 | -2/Testing Imp. Q-thruster | x1 | -2/Testing Hyp. Railgun | x2 | -2/Testing Imp. Q-thruster | x1 | -2/Testing Exp. Propulsion Shielding | x1 | -1/Access Adv. Powered Armor | x1 | -1/Access Exp. Weapon Cycler | x1 | -1/Access Alien Tech Used ----------------- Integrated Reactor Spacefold Activator LRC Armor LRC Matter Compressor Integrated Dissipator Integrated Mediator Core Regenerator Subatomic Replicator Achievements -------------- None Challenges ------------ None Game ------ Seed BarrageHardlightCalibrator Manual? 0 Play Time 05:04:52 Cumulative 1221.2 hours Start 2021.05.27 @ 18:32:50 End 2021.05.28 @ 14:11:24 Sessions 3 Manual Loads 0 Difficulty Rogue Special Mode None Game No. 413 Rogue 413 Adventurer 0 Explorer 0 Win Type 0 Total 89 Types 18/12/37/5/1/2/12/1/1 Lore% 97 Gallery% 96 Achievement% 85 Wizard Run 0 Options --------- ASCII 0 Keyboard 0 Movement Numpad Keybinds 0 Fullscreen 1 Font 18/SmallcapsGlow Map View 76x50 Tactical HUD 1 Map Filters NONE Filters NONE Steam 1 RUN: 357c1ee5-8aff-4341-8bf0-cfae2651e274